{"text_format":"1","workbook":"xlsx","n_sheets":2,"sheets":["ВЕДОМОСТЬ Лященко","Табель"],"not_rendered":{"charts":0,"images":0,"macros":1,"external_links":0,"defined_names":17,"comments":0,"pivot_tables":0},"unopened":[],"bounds":{"document_bytes":16777216,"sheet_cells":100000,"rows_first":2000,"rows_last":500,"rows_between":2000,"halvings":0,"cell_chars":16384,"cell_head_chars":4096},"cells_cut":0,"cells_raw":0,"read":"whole","date_system":"1900"}

{"sheet":"ВЕДОМОСТЬ Лященко","index":0,"n_rows":15,"n_cols":17,"rows_kept":15,"cut":false,"hidden":false,"merged":[]}
[null,null,null,"рабочии дни",21,null,null,"Расчётная ведомость сш .  им. ЛЯЩЕНКО"]
["№ п/п","№ п/п (для формулы)","Ф. И.О.",null,"Ч/cт"," %","отр дн","Уч","Пч","Мч/Вч","З-Уч","З-Пч","З- Мч /Вч","Гос яз","На  дому","Кр/ч","Круж по тариф"]
[null,null,0,null,null,null,null,"ОС","ДС","ЧО,ТС ","ЗОС","ЗДС","ЗЧО,ТС ","тил","уйдо окуу","ийирим"]
[null,1,"Перегородова Ольга Ивановна",null,67.5,0.3,null,{"$f":"ROUND(IF($G4>0,IFERROR(INDEX(Табель!$E:$E,MATCH('ВЕДОМОСТЬ Лященко'!$B4,Табель!$A:$A,0)+MATCH('ВЕДОМОСТЬ Лященко'!H$3,Табель!$D$6:$D$14,0)-1),\"\")*4.2/$E$1*$G4,IFERROR(INDEX(Табель!$H:$H,MATCH('ВЕДОМОСТЬ Лященко'!$B4,Табель!$A:$A,0)+MATCH('ВЕДОМОСТЬ Лященко'!H$3,Табель!$D$6:$D$14,0)-1),\"\")),2)","v":0},{"$f":"ROUND(IF($G4>0,IFERROR(INDEX(Табель!$E:$E,MATCH('ВЕДОМОСТЬ Лященко'!$B4,Табель!$A:$A,0)+MATCH('ВЕДОМОСТЬ Лященко'!I$3,Табель!$D$6:$D$14,0)-1),\"\")*4.2/$E$1*$G4,IFERROR(INDEX(Табель!$H:$H,MATCH('ВЕДОМОСТЬ Лященко'!$B4,Табель!$A:$A,0)+MATCH('ВЕДОМОСТЬ Лященко'!I$3,Табель!$D$6:$D$14,0)-1),\"\")),2)","v":0},{"$f":"ROUND(IF($G4>0,IFERROR(INDEX(Табель!$E:$E,MATCH('ВЕДОМОСТЬ Лященко'!$B4,Табель!$A:$A,0)+MATCH('ВЕДОМОСТЬ Лященко'!J$3,Табель!$D$6:$D$14,0)-1),\"\")*4.2/$E$1*$G4,IFERROR(INDEX(Табель!$H:$H,MATCH('ВЕДОМОСТЬ Лященко'!$B4,Табель!$A:$A,0)+MATCH('ВЕДОМОСТЬ Лященко'!J$3,Табель!$D$6:$D$14,0)-1),\"\")),2)","v":0},{"$f":"ROUND(IF($G4>0,IFERROR(INDEX(Табель!$E:$E,MATCH('ВЕДОМОСТЬ Лященко'!$B4,Табель!$A:$A,0)+MATCH('ВЕДОМОСТЬ Лященко'!K$3,Табель!$D$6:$D$14,0)-1),\"\")*4.2/$E$1*$G4,IFERROR(INDEX(Табель!$H:$H,MATCH('ВЕДОМОСТЬ Лященко'!$B4,Табель!$A:$A,0)+MATCH('ВЕДОМОСТЬ Лященко'!K$3,Табель!$D$6:$D$14,0)-1),\"\")),2)","v":0},{"$f":"ROUND(IF($G4>0,IFERROR(INDEX(Табель!$E:$E,MATCH('ВЕДОМОСТЬ Лященко'!$B4,Табель!$A:$A,0)+MATCH('ВЕДОМОСТЬ Лященко'!L$3,Табель!$D$6:$D$14,0)-1),\"\")*4.2/$E$1*$G4,IFERROR(INDEX(Табель!$H:$H,MATCH('ВЕДОМОСТЬ Лященко'!$B4,Табель!$A:$A,0)+MATCH('ВЕДОМОСТЬ Лященко'!L$3,Табель!$D$6:$D$14,0)-1),\"\")),2)","v":0},{"$f":"ROUND(IF($G4>0,IFERROR(INDEX(Табель!$E:$E,MATCH('ВЕДОМОСТЬ Лященко'!$B4,Табель!$A:$A,0)+MATCH('ВЕДОМОСТЬ Лященко'!M$3,Табель!$D$6:$D$14,0)-1),\"\")*4.2/$E$1*$G4,IFERROR(INDEX(Табель!$H:$H,MATCH('ВЕДОМОСТЬ Лященко'!$B4,Табель!$A:$A,0)+MATCH('ВЕДОМОСТЬ Лященко'!M$3,Табель!$D$6:$D$14,0)-1),\"\")),2)","v":0},{"$f":"ROUND(IF($G4=0,IFERROR(INDEX(Табель!$F:$F,MATCH('ВЕДОМОСТЬ Лященко'!$B4,Табель!$A:$A,0)+1),\"\"),IFERROR(INDEX(Табель!$F:$F,MATCH('ВЕДОМОСТЬ Лященко'!$B4,Табель!$A:$A,0)+1),\"\")*4.2/$E$1*$G4),2)","v":0},{"$f":"ROUND(IF($G4=0,IFERROR(INDEX(Табель!$G:$G,MATCH('ВЕДОМОСТЬ Лященко'!$B4,Табель!$A:$A,0)+1),\"\"),IFERROR(INDEX(Табель!$G:$G,MATCH('ВЕДОМОСТЬ Лященко'!$B4,Табель!$A:$A,0)+1),\"\")*4.2/$E$1*$G4),2)","v":0},{"$f":"IF($G4>0,IFERROR(INDEX(Табель!$E:$E,MATCH('ВЕДОМОСТЬ Лященко'!$B4,Табель!$A:$A,0)+MATCH('ВЕДОМОСТЬ Лященко'!P$3,Табель!$D$6:$D$14,0)-1),\"\")*4.2/$E$1*$G4,IFERROR(INDEX(Табель!$H:$H,MATCH('ВЕДОМОСТЬ Лященко'!$B4,Табель!$A:$A,0)+MATCH('ВЕДОМОСТЬ Лященко'!P$3,Табель!$D$6:$D$14,0)-1),\"\"))","v":0}]
[null,14,"Бочарникова Оксана Анатольевна",null,60,0.1,null,{"$f":"ROUND(IF($G5>0,IFERROR(INDEX(Табель!$E:$E,MATCH('ВЕДОМОСТЬ Лященко'!$B5,Табель!$A:$A,0)+MATCH('ВЕДОМОСТЬ Лященко'!H$3,Табель!$D$6:$D$14,0)-1),\"\")*4.2/$E$1*$G5,IFERROR(INDEX(Табель!$H:$H,MATCH('ВЕДОМОСТЬ Лященко'!$B5,Табель!$A:$A,0)+MATCH('ВЕДОМОСТЬ Лященко'!H$3,Табель!$D$6:$D$14,0)-1),\"\")),2)","v":45},{"$f":"ROUND(IF($G5>0,IFERROR(INDEX(Табель!$E:$E,MATCH('ВЕДОМОСТЬ Лященко'!$B5,Табель!$A:$A,0)+MATCH('ВЕДОМОСТЬ Лященко'!I$3,Табель!$D$6:$D$14,0)-1),\"\")*4.2/$E$1*$G5,IFERROR(INDEX(Табель!$H:$H,MATCH('ВЕДОМОСТЬ Лященко'!$B5,Табель!$A:$A,0)+MATCH('ВЕДОМОСТЬ Лященко'!I$3,Табель!$D$6:$D$14,0)-1),\"\")),2)","v":8},{"$f":"ROUND(IF($G5>0,IFERROR(INDEX(Табель!$E:$E,MATCH('ВЕДОМОСТЬ Лященко'!$B5,Табель!$A:$A,0)+MATCH('ВЕДОМОСТЬ Лященко'!J$3,Табель!$D$6:$D$14,0)-1),\"\")*4.2/$E$1*$G5,IFERROR(INDEX(Табель!$H:$H,MATCH('ВЕДОМОСТЬ Лященко'!$B5,Табель!$A:$A,0)+MATCH('ВЕДОМОСТЬ Лященко'!J$3,Табель!$D$6:$D$14,0)-1),\"\")),2)","v":26},{"$f":"ROUND(IF($G5>0,IFERROR(INDEX(Табель!$E:$E,MATCH('ВЕДОМОСТЬ Лященко'!$B5,Табель!$A:$A,0)+MATCH('ВЕДОМОСТЬ Лященко'!K$3,Табель!$D$6:$D$14,0)-1),\"\")*4.2/$E$1*$G5,IFERROR(INDEX(Табель!$H:$H,MATCH('ВЕДОМОСТЬ Лященко'!$B5,Табель!$A:$A,0)+MATCH('ВЕДОМОСТЬ Лященко'!K$3,Табель!$D$6:$D$14,0)-1),\"\")),2)","v":0},{"$f":"ROUND(IF($G5>0,IFERROR(INDEX(Табель!$E:$E,MATCH('ВЕДОМОСТЬ Лященко'!$B5,Табель!$A:$A,0)+MATCH('ВЕДОМОСТЬ Лященко'!L$3,Табель!$D$6:$D$14,0)-1),\"\")*4.2/$E$1*$G5,IFERROR(INDEX(Табель!$H:$H,MATCH('ВЕДОМОСТЬ Лященко'!$B5,Табель!$A:$A,0)+MATCH('ВЕДОМОСТЬ Лященко'!L$3,Табель!$D$6:$D$14,0)-1),\"\")),2)","v":0},{"$f":"ROUND(IF($G5>0,IFERROR(INDEX(Табель!$E:$E,MATCH('ВЕДОМОСТЬ Лященко'!$B5,Табель!$A:$A,0)+MATCH('ВЕДОМОСТЬ Лященко'!M$3,Табель!$D$6:$D$14,0)-1),\"\")*4.2/$E$1*$G5,IFERROR(INDEX(Табель!$H:$H,MATCH('ВЕДОМОСТЬ Лященко'!$B5,Табель!$A:$A,0)+MATCH('ВЕДОМОСТЬ Лященко'!M$3,Табель!$D$6:$D$14,0)-1),\"\")),2)","v":0},{"$f":"ROUND(IF($G5=0,IFERROR(INDEX(Табель!$F:$F,MATCH('ВЕДОМОСТЬ Лященко'!$B5,Табель!$A:$A,0)+1),\"\"),IFERROR(INDEX(Табель!$F:$F,MATCH('ВЕДОМОСТЬ Лященко'!$B5,Табель!$A:$A,0)+1),\"\")*4.2/$E$1*$G5),2)","v":0},{"$f":"ROUND(IF($G5=0,IFERROR(INDEX(Табель!$G:$G,MATCH('ВЕДОМОСТЬ Лященко'!$B5,Табель!$A:$A,0)+1),\"\"),IFERROR(INDEX(Табель!$G:$G,MATCH('ВЕДОМОСТЬ Лященко'!$B5,Табель!$A:$A,0)+1),\"\")*4.2/$E$1*$G5),2)","v":0},{"$f":"IF($G5>0,IFERROR(INDEX(Табель!$E:$E,MATCH('ВЕДОМОСТЬ Лященко'!$B5,Табель!$A:$A,0)+MATCH('ВЕДОМОСТЬ Лященко'!P$3,Табель!$D$6:$D$14,0)-1),\"\")*4.2/$E$1*$G5,IFERROR(INDEX(Табель!$H:$H,MATCH('ВЕДОМОСТЬ Лященко'!$B5,Табель!$A:$A,0)+MATCH('ВЕДОМОСТЬ Лященко'!P$3,Табель!$D$6:$D$14,0)-1),\"\"))","v":63},15]
[null,15,"Бучина Татьяна Васильевна",null,67.5,0.3,null,{"$f":"ROUND(IF($G6>0,IFERROR(INDEX(Табель!$E:$E,MATCH('ВЕДОМОСТЬ Лященко'!$B6,Табель!$A:$A,0)+MATCH('ВЕДОМОСТЬ Лященко'!H$3,Табель!$D$6:$D$14,0)-1),\"\")*4.2/$E$1*$G6,IFERROR(INDEX(Табель!$H:$H,MATCH('ВЕДОМОСТЬ Лященко'!$B6,Табель!$A:$A,0)+MATCH('ВЕДОМОСТЬ Лященко'!H$3,Табель!$D$6:$D$14,0)-1),\"\")),2)","v":67},{"$f":"ROUND(IF($G6>0,IFERROR(INDEX(Табель!$E:$E,MATCH('ВЕДОМОСТЬ Лященко'!$B6,Табель!$A:$A,0)+MATCH('ВЕДОМОСТЬ Лященко'!I$3,Табель!$D$6:$D$14,0)-1),\"\")*4.2/$E$1*$G6,IFERROR(INDEX(Табель!$H:$H,MATCH('ВЕДОМОСТЬ Лященко'!$B6,Табель!$A:$A,0)+MATCH('ВЕДОМОСТЬ Лященко'!I$3,Табель!$D$6:$D$14,0)-1),\"\")),2)","v":16},{"$f":"ROUND(IF($G6>0,IFERROR(INDEX(Табель!$E:$E,MATCH('ВЕДОМОСТЬ Лященко'!$B6,Табель!$A:$A,0)+MATCH('ВЕДОМОСТЬ Лященко'!J$3,Табель!$D$6:$D$14,0)-1),\"\")*4.2/$E$1*$G6,IFERROR(INDEX(Табель!$H:$H,MATCH('ВЕДОМОСТЬ Лященко'!$B6,Табель!$A:$A,0)+MATCH('ВЕДОМОСТЬ Лященко'!J$3,Табель!$D$6:$D$14,0)-1),\"\")),2)","v":25},{"$f":"ROUND(IF($G6>0,IFERROR(INDEX(Табель!$E:$E,MATCH('ВЕДОМОСТЬ Лященко'!$B6,Табель!$A:$A,0)+MATCH('ВЕДОМОСТЬ Лященко'!K$3,Табель!$D$6:$D$14,0)-1),\"\")*4.2/$E$1*$G6,IFERROR(INDEX(Табель!$H:$H,MATCH('ВЕДОМОСТЬ Лященко'!$B6,Табель!$A:$A,0)+MATCH('ВЕДОМОСТЬ Лященко'!K$3,Табель!$D$6:$D$14,0)-1),\"\")),2)","v":0},{"$f":"ROUND(IF($G6>0,IFERROR(INDEX(Табель!$E:$E,MATCH('ВЕДОМОСТЬ Лященко'!$B6,Табель!$A:$A,0)+MATCH('ВЕДОМОСТЬ Лященко'!L$3,Табель!$D$6:$D$14,0)-1),\"\")*4.2/$E$1*$G6,IFERROR(INDEX(Табель!$H:$H,MATCH('ВЕДОМОСТЬ Лященко'!$B6,Табель!$A:$A,0)+MATCH('ВЕДОМОСТЬ Лященко'!L$3,Табель!$D$6:$D$14,0)-1),\"\")),2)","v":0},{"$f":"ROUND(IF($G6>0,IFERROR(INDEX(Табель!$E:$E,MATCH('ВЕДОМОСТЬ Лященко'!$B6,Табель!$A:$A,0)+MATCH('ВЕДОМОСТЬ Лященко'!M$3,Табель!$D$6:$D$14,0)-1),\"\")*4.2/$E$1*$G6,IFERROR(INDEX(Табель!$H:$H,MATCH('ВЕДОМОСТЬ Лященко'!$B6,Табель!$A:$A,0)+MATCH('ВЕДОМОСТЬ Лященко'!M$3,Табель!$D$6:$D$14,0)-1),\"\")),2)","v":0},{"$f":"ROUND(IF($G6=0,IFERROR(INDEX(Табель!$F:$F,MATCH('ВЕДОМОСТЬ Лященко'!$B6,Табель!$A:$A,0)+1),\"\"),IFERROR(INDEX(Табель!$F:$F,MATCH('ВЕДОМОСТЬ Лященко'!$B6,Табель!$A:$A,0)+1),\"\")*4.2/$E$1*$G6),2)","v":0},{"$f":"ROUND(IF($G6=0,IFERROR(INDEX(Табель!$G:$G,MATCH('ВЕДОМОСТЬ Лященко'!$B6,Табель!$A:$A,0)+1),\"\"),IFERROR(INDEX(Табель!$G:$G,MATCH('ВЕДОМОСТЬ Лященко'!$B6,Табель!$A:$A,0)+1),\"\")*4.2/$E$1*$G6),2)","v":0},{"$f":"IF($G6>0,IFERROR(INDEX(Табель!$E:$E,MATCH('ВЕДОМОСТЬ Лященко'!$B6,Табель!$A:$A,0)+MATCH('ВЕДОМОСТЬ Лященко'!P$3,Табель!$D$6:$D$14,0)-1),\"\")*4.2/$E$1*$G6,IFERROR(INDEX(Табель!$H:$H,MATCH('ВЕДОМОСТЬ Лященко'!$B6,Табель!$A:$A,0)+MATCH('ВЕДОМОСТЬ Лященко'!P$3,Табель!$D$6:$D$14,0)-1),\"\"))","v":20},5]
[null,16,"Джумабаева Анара Акимкановна",null,67.5,0.3,null,{"$f":"ROUND(IF($G7>0,IFERROR(INDEX(Табель!$E:$E,MATCH('ВЕДОМОСТЬ Лященко'!$B7,Табель!$A:$A,0)+MATCH('ВЕДОМОСТЬ Лященко'!H$3,Табель!$D$6:$D$14,0)-1),\"\")*4.2/$E$1*$G7,IFERROR(INDEX(Табель!$H:$H,MATCH('ВЕДОМОСТЬ Лященко'!$B7,Табель!$A:$A,0)+MATCH('ВЕДОМОСТЬ Лященко'!H$3,Табель!$D$6:$D$14,0)-1),\"\")),2)","v":48},{"$f":"ROUND(IF($G7>0,IFERROR(INDEX(Табель!$E:$E,MATCH('ВЕДОМОСТЬ Лященко'!$B7,Табель!$A:$A,0)+MATCH('ВЕДОМОСТЬ Лященко'!I$3,Табель!$D$6:$D$14,0)-1),\"\")*4.2/$E$1*$G7,IFERROR(INDEX(Табель!$H:$H,MATCH('ВЕДОМОСТЬ Лященко'!$B7,Табель!$A:$A,0)+MATCH('ВЕДОМОСТЬ Лященко'!I$3,Табель!$D$6:$D$14,0)-1),\"\")),2)","v":20},{"$f":"ROUND(IF($G7>0,IFERROR(INDEX(Табель!$E:$E,MATCH('ВЕДОМОСТЬ Лященко'!$B7,Табель!$A:$A,0)+MATCH('ВЕДОМОСТЬ Лященко'!J$3,Табель!$D$6:$D$14,0)-1),\"\")*4.2/$E$1*$G7,IFERROR(INDEX(Табель!$H:$H,MATCH('ВЕДОМОСТЬ Лященко'!$B7,Табель!$A:$A,0)+MATCH('ВЕДОМОСТЬ Лященко'!J$3,Табель!$D$6:$D$14,0)-1),\"\")),2)","v":8},{"$f":"ROUND(IF($G7>0,IFERROR(INDEX(Табель!$E:$E,MATCH('ВЕДОМОСТЬ Лященко'!$B7,Табель!$A:$A,0)+MATCH('ВЕДОМОСТЬ Лященко'!K$3,Табель!$D$6:$D$14,0)-1),\"\")*4.2/$E$1*$G7,IFERROR(INDEX(Табель!$H:$H,MATCH('ВЕДОМОСТЬ Лященко'!$B7,Табель!$A:$A,0)+MATCH('ВЕДОМОСТЬ Лященко'!K$3,Табель!$D$6:$D$14,0)-1),\"\")),2)","v":0},{"$f":"ROUND(IF($G7>0,IFERROR(INDEX(Табель!$E:$E,MATCH('ВЕДОМОСТЬ Лященко'!$B7,Табель!$A:$A,0)+MATCH('ВЕДОМОСТЬ Лященко'!L$3,Табель!$D$6:$D$14,0)-1),\"\")*4.2/$E$1*$G7,IFERROR(INDEX(Табель!$H:$H,MATCH('ВЕДОМОСТЬ Лященко'!$B7,Табель!$A:$A,0)+MATCH('ВЕДОМОСТЬ Лященко'!L$3,Табель!$D$6:$D$14,0)-1),\"\")),2)","v":0},{"$f":"ROUND(IF($G7>0,IFERROR(INDEX(Табель!$E:$E,MATCH('ВЕДОМОСТЬ Лященко'!$B7,Табель!$A:$A,0)+MATCH('ВЕДОМОСТЬ Лященко'!M$3,Табель!$D$6:$D$14,0)-1),\"\")*4.2/$E$1*$G7,IFERROR(INDEX(Табель!$H:$H,MATCH('ВЕДОМОСТЬ Лященко'!$B7,Табель!$A:$A,0)+MATCH('ВЕДОМОСТЬ Лященко'!M$3,Табель!$D$6:$D$14,0)-1),\"\")),2)","v":0},{"$f":"ROUND(IF($G7=0,IFERROR(INDEX(Табель!$F:$F,MATCH('ВЕДОМОСТЬ Лященко'!$B7,Табель!$A:$A,0)+1),\"\"),IFERROR(INDEX(Табель!$F:$F,MATCH('ВЕДОМОСТЬ Лященко'!$B7,Табель!$A:$A,0)+1),\"\")*4.2/$E$1*$G7),2)","v":12},{"$f":"ROUND(IF($G7=0,IFERROR(INDEX(Табель!$G:$G,MATCH('ВЕДОМОСТЬ Лященко'!$B7,Табель!$A:$A,0)+1),\"\"),IFERROR(INDEX(Табель!$G:$G,MATCH('ВЕДОМОСТЬ Лященко'!$B7,Табель!$A:$A,0)+1),\"\")*4.2/$E$1*$G7),2)","v":0},{"$f":"IF($G7>0,IFERROR(INDEX(Табель!$E:$E,MATCH('ВЕДОМОСТЬ Лященко'!$B7,Табель!$A:$A,0)+MATCH('ВЕДОМОСТЬ Лященко'!P$3,Табель!$D$6:$D$14,0)-1),\"\")*4.2/$E$1*$G7,IFERROR(INDEX(Табель!$H:$H,MATCH('ВЕДОМОСТЬ Лященко'!$B7,Табель!$A:$A,0)+MATCH('ВЕДОМОСТЬ Лященко'!P$3,Табель!$D$6:$D$14,0)-1),\"\"))","v":0}]
[null,17,"Джумабаева Анара Акимкановна",null,81,0.3,null,{"$f":"ROUND(IF($G8>0,IFERROR(INDEX(Табель!$E:$E,MATCH('ВЕДОМОСТЬ Лященко'!$B8,Табель!$A:$A,0)+MATCH('ВЕДОМОСТЬ Лященко'!H$3,Табель!$D$6:$D$14,0)-1),\"\")*4.2/$E$1*$G8,IFERROR(INDEX(Табель!$H:$H,MATCH('ВЕДОМОСТЬ Лященко'!$B8,Табель!$A:$A,0)+MATCH('ВЕДОМОСТЬ Лященко'!H$3,Табель!$D$6:$D$14,0)-1),\"\")),2)","v":20},{"$f":"ROUND(IF($G8>0,IFERROR(INDEX(Табель!$E:$E,MATCH('ВЕДОМОСТЬ Лященко'!$B8,Табель!$A:$A,0)+MATCH('ВЕДОМОСТЬ Лященко'!I$3,Табель!$D$6:$D$14,0)-1),\"\")*4.2/$E$1*$G8,IFERROR(INDEX(Табель!$H:$H,MATCH('ВЕДОМОСТЬ Лященко'!$B8,Табель!$A:$A,0)+MATCH('ВЕДОМОСТЬ Лященко'!I$3,Табель!$D$6:$D$14,0)-1),\"\")),2)","v":0},{"$f":"ROUND(IF($G8>0,IFERROR(INDEX(Табель!$E:$E,MATCH('ВЕДОМОСТЬ Лященко'!$B8,Табель!$A:$A,0)+MATCH('ВЕДОМОСТЬ Лященко'!J$3,Табель!$D$6:$D$14,0)-1),\"\")*4.2/$E$1*$G8,IFERROR(INDEX(Табель!$H:$H,MATCH('ВЕДОМОСТЬ Лященко'!$B8,Табель!$A:$A,0)+MATCH('ВЕДОМОСТЬ Лященко'!J$3,Табель!$D$6:$D$14,0)-1),\"\")),2)","v":0},{"$f":"ROUND(IF($G8>0,IFERROR(INDEX(Табель!$E:$E,MATCH('ВЕДОМОСТЬ Лященко'!$B8,Табель!$A:$A,0)+MATCH('ВЕДОМОСТЬ Лященко'!K$3,Табель!$D$6:$D$14,0)-1),\"\")*4.2/$E$1*$G8,IFERROR(INDEX(Табель!$H:$H,MATCH('ВЕДОМОСТЬ Лященко'!$B8,Табель!$A:$A,0)+MATCH('ВЕДОМОСТЬ Лященко'!K$3,Табель!$D$6:$D$14,0)-1),\"\")),2)","v":0},{"$f":"ROUND(IF($G8>0,IFERROR(INDEX(Табель!$E:$E,MATCH('ВЕДОМОСТЬ Лященко'!$B8,Табель!$A:$A,0)+MATCH('ВЕДОМОСТЬ Лященко'!L$3,Табель!$D$6:$D$14,0)-1),\"\")*4.2/$E$1*$G8,IFERROR(INDEX(Табель!$H:$H,MATCH('ВЕДОМОСТЬ Лященко'!$B8,Табель!$A:$A,0)+MATCH('ВЕДОМОСТЬ Лященко'!L$3,Табель!$D$6:$D$14,0)-1),\"\")),2)","v":0},{"$f":"ROUND(IF($G8>0,IFERROR(INDEX(Табель!$E:$E,MATCH('ВЕДОМОСТЬ Лященко'!$B8,Табель!$A:$A,0)+MATCH('ВЕДОМОСТЬ Лященко'!M$3,Табель!$D$6:$D$14,0)-1),\"\")*4.2/$E$1*$G8,IFERROR(INDEX(Табель!$H:$H,MATCH('ВЕДОМОСТЬ Лященко'!$B8,Табель!$A:$A,0)+MATCH('ВЕДОМОСТЬ Лященко'!M$3,Табель!$D$6:$D$14,0)-1),\"\")),2)","v":0},{"$f":"ROUND(IF($G8=0,IFERROR(INDEX(Табель!$F:$F,MATCH('ВЕДОМОСТЬ Лященко'!$B8,Табель!$A:$A,0)+1),\"\"),IFERROR(INDEX(Табель!$F:$F,MATCH('ВЕДОМОСТЬ Лященко'!$B8,Табель!$A:$A,0)+1),\"\")*4.2/$E$1*$G8),2)","v":20},{"$f":"ROUND(IF($G8=0,IFERROR(INDEX(Табель!$G:$G,MATCH('ВЕДОМОСТЬ Лященко'!$B8,Табель!$A:$A,0)+1),\"\"),IFERROR(INDEX(Табель!$G:$G,MATCH('ВЕДОМОСТЬ Лященко'!$B8,Табель!$A:$A,0)+1),\"\")*4.2/$E$1*$G8),2)","v":0},{"$f":"IF($G8>0,IFERROR(INDEX(Табель!$E:$E,MATCH('ВЕДОМОСТЬ Лященко'!$B8,Табель!$A:$A,0)+MATCH('ВЕДОМОСТЬ Лященко'!P$3,Табель!$D$6:$D$14,0)-1),\"\")*4.2/$E$1*$G8,IFERROR(INDEX(Табель!$H:$H,MATCH('ВЕДОМОСТЬ Лященко'!$B8,Табель!$A:$A,0)+MATCH('ВЕДОМОСТЬ Лященко'!P$3,Табель!$D$6:$D$14,0)-1),\"\"))","v":0}]
[null,18,"Дмитриченко  Анна Сергеевна",null,72,0.2,null,{"$f":"ROUND(IF($G9>0,IFERROR(INDEX(Табель!$E:$E,MATCH('ВЕДОМОСТЬ Лященко'!$B9,Табель!$A:$A,0)+MATCH('ВЕДОМОСТЬ Лященко'!H$3,Табель!$D$6:$D$14,0)-1),\"\")*4.2/$E$1*$G9,IFERROR(INDEX(Табель!$H:$H,MATCH('ВЕДОМОСТЬ Лященко'!$B9,Табель!$A:$A,0)+MATCH('ВЕДОМОСТЬ Лященко'!H$3,Табель!$D$6:$D$14,0)-1),\"\")),2)","v":80},{"$f":"ROUND(IF($G9>0,IFERROR(INDEX(Табель!$E:$E,MATCH('ВЕДОМОСТЬ Лященко'!$B9,Табель!$A:$A,0)+MATCH('ВЕДОМОСТЬ Лященко'!I$3,Табель!$D$6:$D$14,0)-1),\"\")*4.2/$E$1*$G9,IFERROR(INDEX(Табель!$H:$H,MATCH('ВЕДОМОСТЬ Лященко'!$B9,Табель!$A:$A,0)+MATCH('ВЕДОМОСТЬ Лященко'!I$3,Табель!$D$6:$D$14,0)-1),\"\")),2)","v":26},{"$f":"ROUND(IF($G9>0,IFERROR(INDEX(Табель!$E:$E,MATCH('ВЕДОМОСТЬ Лященко'!$B9,Табель!$A:$A,0)+MATCH('ВЕДОМОСТЬ Лященко'!J$3,Табель!$D$6:$D$14,0)-1),\"\")*4.2/$E$1*$G9,IFERROR(INDEX(Табель!$H:$H,MATCH('ВЕДОМОСТЬ Лященко'!$B9,Табель!$A:$A,0)+MATCH('ВЕДОМОСТЬ Лященко'!J$3,Табель!$D$6:$D$14,0)-1),\"\")),2)","v":26},{"$f":"ROUND(IF($G9>0,IFERROR(INDEX(Табель!$E:$E,MATCH('ВЕДОМОСТЬ Лященко'!$B9,Табель!$A:$A,0)+MATCH('ВЕДОМОСТЬ Лященко'!K$3,Табель!$D$6:$D$14,0)-1),\"\")*4.2/$E$1*$G9,IFERROR(INDEX(Табель!$H:$H,MATCH('ВЕДОМОСТЬ Лященко'!$B9,Табель!$A:$A,0)+MATCH('ВЕДОМОСТЬ Лященко'!K$3,Табель!$D$6:$D$14,0)-1),\"\")),2)","v":0},{"$f":"ROUND(IF($G9>0,IFERROR(INDEX(Табель!$E:$E,MATCH('ВЕДОМОСТЬ Лященко'!$B9,Табель!$A:$A,0)+MATCH('ВЕДОМОСТЬ Лященко'!L$3,Табель!$D$6:$D$14,0)-1),\"\")*4.2/$E$1*$G9,IFERROR(INDEX(Табель!$H:$H,MATCH('ВЕДОМОСТЬ Лященко'!$B9,Табель!$A:$A,0)+MATCH('ВЕДОМОСТЬ Лященко'!L$3,Табель!$D$6:$D$14,0)-1),\"\")),2)","v":0},{"$f":"ROUND(IF($G9>0,IFERROR(INDEX(Табель!$E:$E,MATCH('ВЕДОМОСТЬ Лященко'!$B9,Табель!$A:$A,0)+MATCH('ВЕДОМОСТЬ Лященко'!M$3,Табель!$D$6:$D$14,0)-1),\"\")*4.2/$E$1*$G9,IFERROR(INDEX(Табель!$H:$H,MATCH('ВЕДОМОСТЬ Лященко'!$B9,Табель!$A:$A,0)+MATCH('ВЕДОМОСТЬ Лященко'!M$3,Табель!$D$6:$D$14,0)-1),\"\")),2)","v":0},{"$f":"ROUND(IF($G9=0,IFERROR(INDEX(Табель!$F:$F,MATCH('ВЕДОМОСТЬ Лященко'!$B9,Табель!$A:$A,0)+1),\"\"),IFERROR(INDEX(Табель!$F:$F,MATCH('ВЕДОМОСТЬ Лященко'!$B9,Табель!$A:$A,0)+1),\"\")*4.2/$E$1*$G9),2)","v":0},{"$f":"ROUND(IF($G9=0,IFERROR(INDEX(Табель!$G:$G,MATCH('ВЕДОМОСТЬ Лященко'!$B9,Табель!$A:$A,0)+1),\"\"),IFERROR(INDEX(Табель!$G:$G,MATCH('ВЕДОМОСТЬ Лященко'!$B9,Табель!$A:$A,0)+1),\"\")*4.2/$E$1*$G9),2)","v":0},{"$f":"IF($G9>0,IFERROR(INDEX(Табель!$E:$E,MATCH('ВЕДОМОСТЬ Лященко'!$B9,Табель!$A:$A,0)+MATCH('ВЕДОМОСТЬ Лященко'!P$3,Табель!$D$6:$D$14,0)-1),\"\")*4.2/$E$1*$G9,IFERROR(INDEX(Табель!$H:$H,MATCH('ВЕДОМОСТЬ Лященко'!$B9,Табель!$A:$A,0)+MATCH('ВЕДОМОСТЬ Лященко'!P$3,Табель!$D$6:$D$14,0)-1),\"\"))","v":0}]
[null,19,"Дмитриченко  Анна Сергеевна",null,72,0.2,null,{"$f":"ROUND(IF($G10>0,IFERROR(INDEX(Табель!$E:$E,MATCH('ВЕДОМОСТЬ Лященко'!$B10,Табель!$A:$A,0)+MATCH('ВЕДОМОСТЬ Лященко'!H$3,Табель!$D$6:$D$14,0)-1),\"\")*4.2/$E$1*$G10,IFERROR(INDEX(Табель!$H:$H,MATCH('ВЕДОМОСТЬ Лященко'!$B10,Табель!$A:$A,0)+MATCH('ВЕДОМОСТЬ Лященко'!H$3,Табель!$D$6:$D$14,0)-1),\"\")),2)","v":63},{"$f":"ROUND(IF($G10>0,IFERROR(INDEX(Табель!$E:$E,MATCH('ВЕДОМОСТЬ Лященко'!$B10,Табель!$A:$A,0)+MATCH('ВЕДОМОСТЬ Лященко'!I$3,Табель!$D$6:$D$14,0)-1),\"\")*4.2/$E$1*$G10,IFERROR(INDEX(Табель!$H:$H,MATCH('ВЕДОМОСТЬ Лященко'!$B10,Табель!$A:$A,0)+MATCH('ВЕДОМОСТЬ Лященко'!I$3,Табель!$D$6:$D$14,0)-1),\"\")),2)","v":6},{"$f":"ROUND(IF($G10>0,IFERROR(INDEX(Табель!$E:$E,MATCH('ВЕДОМОСТЬ Лященко'!$B10,Табель!$A:$A,0)+MATCH('ВЕДОМОСТЬ Лященко'!J$3,Табель!$D$6:$D$14,0)-1),\"\")*4.2/$E$1*$G10,IFERROR(INDEX(Табель!$H:$H,MATCH('ВЕДОМОСТЬ Лященко'!$B10,Табель!$A:$A,0)+MATCH('ВЕДОМОСТЬ Лященко'!J$3,Табель!$D$6:$D$14,0)-1),\"\")),2)","v":0},{"$f":"ROUND(IF($G10>0,IFERROR(INDEX(Табель!$E:$E,MATCH('ВЕДОМОСТЬ Лященко'!$B10,Табель!$A:$A,0)+MATCH('ВЕДОМОСТЬ Лященко'!K$3,Табель!$D$6:$D$14,0)-1),\"\")*4.2/$E$1*$G10,IFERROR(INDEX(Табель!$H:$H,MATCH('ВЕДОМОСТЬ Лященко'!$B10,Табель!$A:$A,0)+MATCH('ВЕДОМОСТЬ Лященко'!K$3,Табель!$D$6:$D$14,0)-1),\"\")),2)","v":0},{"$f":"ROUND(IF($G10>0,IFERROR(INDEX(Табель!$E:$E,MATCH('ВЕДОМОСТЬ Лященко'!$B10,Табель!$A:$A,0)+MATCH('ВЕДОМОСТЬ Лященко'!L$3,Табель!$D$6:$D$14,0)-1),\"\")*4.2/$E$1*$G10,IFERROR(INDEX(Табель!$H:$H,MATCH('ВЕДОМОСТЬ Лященко'!$B10,Табель!$A:$A,0)+MATCH('ВЕДОМОСТЬ Лященко'!L$3,Табель!$D$6:$D$14,0)-1),\"\")),2)","v":0},{"$f":"ROUND(IF($G10>0,IFERROR(INDEX(Табель!$E:$E,MATCH('ВЕДОМОСТЬ Лященко'!$B10,Табель!$A:$A,0)+MATCH('ВЕДОМОСТЬ Лященко'!M$3,Табель!$D$6:$D$14,0)-1),\"\")*4.2/$E$1*$G10,IFERROR(INDEX(Табель!$H:$H,MATCH('ВЕДОМОСТЬ Лященко'!$B10,Табель!$A:$A,0)+MATCH('ВЕДОМОСТЬ Лященко'!M$3,Табель!$D$6:$D$14,0)-1),\"\")),2)","v":0},{"$f":"ROUND(IF($G10=0,IFERROR(INDEX(Табель!$F:$F,MATCH('ВЕДОМОСТЬ Лященко'!$B10,Табель!$A:$A,0)+1),\"\"),IFERROR(INDEX(Табель!$F:$F,MATCH('ВЕДОМОСТЬ Лященко'!$B10,Табель!$A:$A,0)+1),\"\")*4.2/$E$1*$G10),2)","v":0},{"$f":"ROUND(IF($G10=0,IFERROR(INDEX(Табель!$G:$G,MATCH('ВЕДОМОСТЬ Лященко'!$B10,Табель!$A:$A,0)+1),\"\"),IFERROR(INDEX(Табель!$G:$G,MATCH('ВЕДОМОСТЬ Лященко'!$B10,Табель!$A:$A,0)+1),\"\")*4.2/$E$1*$G10),2)","v":0},{"$f":"IF($G10>0,IFERROR(INDEX(Табель!$E:$E,MATCH('ВЕДОМОСТЬ Лященко'!$B10,Табель!$A:$A,0)+MATCH('ВЕДОМОСТЬ Лященко'!P$3,Табель!$D$6:$D$14,0)-1),\"\")*4.2/$E$1*$G10,IFERROR(INDEX(Табель!$H:$H,MATCH('ВЕДОМОСТЬ Лященко'!$B10,Табель!$A:$A,0)+MATCH('ВЕДОМОСТЬ Лященко'!P$3,Табель!$D$6:$D$14,0)-1),\"\"))","v":0}]
[null,20,"Добрыднева Евгение Петровна",null,67.5,0.1,null,{"$f":"ROUND(IF($G11>0,IFERROR(INDEX(Табель!$E:$E,MATCH('ВЕДОМОСТЬ Лященко'!$B11,Табель!$A:$A,0)+MATCH('ВЕДОМОСТЬ Лященко'!H$3,Табель!$D$6:$D$14,0)-1),\"\")*4.2/$E$1*$G11,IFERROR(INDEX(Табель!$H:$H,MATCH('ВЕДОМОСТЬ Лященко'!$B11,Табель!$A:$A,0)+MATCH('ВЕДОМОСТЬ Лященко'!H$3,Табель!$D$6:$D$14,0)-1),\"\")),2)","v":84},{"$f":"ROUND(IF($G11>0,IFERROR(INDEX(Табель!$E:$E,MATCH('ВЕДОМОСТЬ Лященко'!$B11,Табель!$A:$A,0)+MATCH('ВЕДОМОСТЬ Лященко'!I$3,Табель!$D$6:$D$14,0)-1),\"\")*4.2/$E$1*$G11,IFERROR(INDEX(Табель!$H:$H,MATCH('ВЕДОМОСТЬ Лященко'!$B11,Табель!$A:$A,0)+MATCH('ВЕДОМОСТЬ Лященко'!I$3,Табель!$D$6:$D$14,0)-1),\"\")),2)","v":17},{"$f":"ROUND(IF($G11>0,IFERROR(INDEX(Табель!$E:$E,MATCH('ВЕДОМОСТЬ Лященко'!$B11,Табель!$A:$A,0)+MATCH('ВЕДОМОСТЬ Лященко'!J$3,Табель!$D$6:$D$14,0)-1),\"\")*4.2/$E$1*$G11,IFERROR(INDEX(Табель!$H:$H,MATCH('ВЕДОМОСТЬ Лященко'!$B11,Табель!$A:$A,0)+MATCH('ВЕДОМОСТЬ Лященко'!J$3,Табель!$D$6:$D$14,0)-1),\"\")),2)","v":34},{"$f":"ROUND(IF($G11>0,IFERROR(INDEX(Табель!$E:$E,MATCH('ВЕДОМОСТЬ Лященко'!$B11,Табель!$A:$A,0)+MATCH('ВЕДОМОСТЬ Лященко'!K$3,Табель!$D$6:$D$14,0)-1),\"\")*4.2/$E$1*$G11,IFERROR(INDEX(Табель!$H:$H,MATCH('ВЕДОМОСТЬ Лященко'!$B11,Табель!$A:$A,0)+MATCH('ВЕДОМОСТЬ Лященко'!K$3,Табель!$D$6:$D$14,0)-1),\"\")),2)","v":0},{"$f":"ROUND(IF($G11>0,IFERROR(INDEX(Табель!$E:$E,MATCH('ВЕДОМОСТЬ Лященко'!$B11,Табель!$A:$A,0)+MATCH('ВЕДОМОСТЬ Лященко'!L$3,Табель!$D$6:$D$14,0)-1),\"\")*4.2/$E$1*$G11,IFERROR(INDEX(Табель!$H:$H,MATCH('ВЕДОМОСТЬ Лященко'!$B11,Табель!$A:$A,0)+MATCH('ВЕДОМОСТЬ Лященко'!L$3,Табель!$D$6:$D$14,0)-1),\"\")),2)","v":0},{"$f":"ROUND(IF($G11>0,IFERROR(INDEX(Табель!$E:$E,MATCH('ВЕДОМОСТЬ Лященко'!$B11,Табель!$A:$A,0)+MATCH('ВЕДОМОСТЬ Лященко'!M$3,Табель!$D$6:$D$14,0)-1),\"\")*4.2/$E$1*$G11,IFERROR(INDEX(Табель!$H:$H,MATCH('ВЕДОМОСТЬ Лященко'!$B11,Табель!$A:$A,0)+MATCH('ВЕДОМОСТЬ Лященко'!M$3,Табель!$D$6:$D$14,0)-1),\"\")),2)","v":0},{"$f":"ROUND(IF($G11=0,IFERROR(INDEX(Табель!$F:$F,MATCH('ВЕДОМОСТЬ Лященко'!$B11,Табель!$A:$A,0)+1),\"\"),IFERROR(INDEX(Табель!$F:$F,MATCH('ВЕДОМОСТЬ Лященко'!$B11,Табель!$A:$A,0)+1),\"\")*4.2/$E$1*$G11),2)","v":0},{"$f":"ROUND(IF($G11=0,IFERROR(INDEX(Табель!$G:$G,MATCH('ВЕДОМОСТЬ Лященко'!$B11,Табель!$A:$A,0)+1),\"\"),IFERROR(INDEX(Табель!$G:$G,MATCH('ВЕДОМОСТЬ Лященко'!$B11,Табель!$A:$A,0)+1),\"\")*4.2/$E$1*$G11),2)","v":0},{"$f":"IF($G11>0,IFERROR(INDEX(Табель!$E:$E,MATCH('ВЕДОМОСТЬ Лященко'!$B11,Табель!$A:$A,0)+MATCH('ВЕДОМОСТЬ Лященко'!P$3,Табель!$D$6:$D$14,0)-1),\"\")*4.2/$E$1*$G11,IFERROR(INDEX(Табель!$H:$H,MATCH('ВЕДОМОСТЬ Лященко'!$B11,Табель!$A:$A,0)+MATCH('ВЕДОМОСТЬ Лященко'!P$3,Табель!$D$6:$D$14,0)-1),\"\"))","v":0}]
[null,21,"Добрыднева Евгение Петровна",null,81,0.1,null,{"$f":"ROUND(IF($G12>0,IFERROR(INDEX(Табель!$E:$E,MATCH('ВЕДОМОСТЬ Лященко'!$B12,Табель!$A:$A,0)+MATCH('ВЕДОМОСТЬ Лященко'!H$3,Табель!$D$6:$D$14,0)-1),\"\")*4.2/$E$1*$G12,IFERROR(INDEX(Табель!$H:$H,MATCH('ВЕДОМОСТЬ Лященко'!$B12,Табель!$A:$A,0)+MATCH('ВЕДОМОСТЬ Лященко'!H$3,Табель!$D$6:$D$14,0)-1),\"\")),2)","v":18},{"$f":"ROUND(IF($G12>0,IFERROR(INDEX(Табель!$E:$E,MATCH('ВЕДОМОСТЬ Лященко'!$B12,Табель!$A:$A,0)+MATCH('ВЕДОМОСТЬ Лященко'!I$3,Табель!$D$6:$D$14,0)-1),\"\")*4.2/$E$1*$G12,IFERROR(INDEX(Табель!$H:$H,MATCH('ВЕДОМОСТЬ Лященко'!$B12,Табель!$A:$A,0)+MATCH('ВЕДОМОСТЬ Лященко'!I$3,Табель!$D$6:$D$14,0)-1),\"\")),2)","v":0},{"$f":"ROUND(IF($G12>0,IFERROR(INDEX(Табель!$E:$E,MATCH('ВЕДОМОСТЬ Лященко'!$B12,Табель!$A:$A,0)+MATCH('ВЕДОМОСТЬ Лященко'!J$3,Табель!$D$6:$D$14,0)-1),\"\")*4.2/$E$1*$G12,IFERROR(INDEX(Табель!$H:$H,MATCH('ВЕДОМОСТЬ Лященко'!$B12,Табель!$A:$A,0)+MATCH('ВЕДОМОСТЬ Лященко'!J$3,Табель!$D$6:$D$14,0)-1),\"\")),2)","v":0},{"$f":"ROUND(IF($G12>0,IFERROR(INDEX(Табель!$E:$E,MATCH('ВЕДОМОСТЬ Лященко'!$B12,Табель!$A:$A,0)+MATCH('ВЕДОМОСТЬ Лященко'!K$3,Табель!$D$6:$D$14,0)-1),\"\")*4.2/$E$1*$G12,IFERROR(INDEX(Табель!$H:$H,MATCH('ВЕДОМОСТЬ Лященко'!$B12,Табель!$A:$A,0)+MATCH('ВЕДОМОСТЬ Лященко'!K$3,Табель!$D$6:$D$14,0)-1),\"\")),2)","v":0},{"$f":"ROUND(IF($G12>0,IFERROR(INDEX(Табель!$E:$E,MATCH('ВЕДОМОСТЬ Лященко'!$B12,Табель!$A:$A,0)+MATCH('ВЕДОМОСТЬ Лященко'!L$3,Табель!$D$6:$D$14,0)-1),\"\")*4.2/$E$1*$G12,IFERROR(INDEX(Табель!$H:$H,MATCH('ВЕДОМОСТЬ Лященко'!$B12,Табель!$A:$A,0)+MATCH('ВЕДОМОСТЬ Лященко'!L$3,Табель!$D$6:$D$14,0)-1),\"\")),2)","v":0},{"$f":"ROUND(IF($G12>0,IFERROR(INDEX(Табель!$E:$E,MATCH('ВЕДОМОСТЬ Лященко'!$B12,Табель!$A:$A,0)+MATCH('ВЕДОМОСТЬ Лященко'!M$3,Табель!$D$6:$D$14,0)-1),\"\")*4.2/$E$1*$G12,IFERROR(INDEX(Табель!$H:$H,MATCH('ВЕДОМОСТЬ Лященко'!$B12,Табель!$A:$A,0)+MATCH('ВЕДОМОСТЬ Лященко'!M$3,Табель!$D$6:$D$14,0)-1),\"\")),2)","v":0},{"$f":"ROUND(IF($G12=0,IFERROR(INDEX(Табель!$F:$F,MATCH('ВЕДОМОСТЬ Лященко'!$B12,Табель!$A:$A,0)+1),\"\"),IFERROR(INDEX(Табель!$F:$F,MATCH('ВЕДОМОСТЬ Лященко'!$B12,Табель!$A:$A,0)+1),\"\")*4.2/$E$1*$G12),2)","v":0},{"$f":"ROUND(IF($G12=0,IFERROR(INDEX(Табель!$G:$G,MATCH('ВЕДОМОСТЬ Лященко'!$B12,Табель!$A:$A,0)+1),\"\"),IFERROR(INDEX(Табель!$G:$G,MATCH('ВЕДОМОСТЬ Лященко'!$B12,Табель!$A:$A,0)+1),\"\")*4.2/$E$1*$G12),2)","v":0},{"$f":"IF($G12>0,IFERROR(INDEX(Табель!$E:$E,MATCH('ВЕДОМОСТЬ Лященко'!$B12,Табель!$A:$A,0)+MATCH('ВЕДОМОСТЬ Лященко'!P$3,Табель!$D$6:$D$14,0)-1),\"\")*4.2/$E$1*$G12,IFERROR(INDEX(Табель!$H:$H,MATCH('ВЕДОМОСТЬ Лященко'!$B12,Табель!$A:$A,0)+MATCH('ВЕДОМОСТЬ Лященко'!P$3,Табель!$D$6:$D$14,0)-1),\"\"))","v":0}]
[null,22,"Дружинина Галина Викторовна",null,67.5,0.3,null,{"$f":"ROUND(IF($G13>0,IFERROR(INDEX(Табель!$E:$E,MATCH('ВЕДОМОСТЬ Лященко'!$B13,Табель!$A:$A,0)+MATCH('ВЕДОМОСТЬ Лященко'!H$3,Табель!$D$6:$D$14,0)-1),\"\")*4.2/$E$1*$G13,IFERROR(INDEX(Табель!$H:$H,MATCH('ВЕДОМОСТЬ Лященко'!$B13,Табель!$A:$A,0)+MATCH('ВЕДОМОСТЬ Лященко'!H$3,Табель!$D$6:$D$14,0)-1),\"\")),2)","v":130},{"$f":"ROUND(IF($G13>0,IFERROR(INDEX(Табель!$E:$E,MATCH('ВЕДОМОСТЬ Лященко'!$B13,Табель!$A:$A,0)+MATCH('ВЕДОМОСТЬ Лященко'!I$3,Табель!$D$6:$D$14,0)-1),\"\")*4.2/$E$1*$G13,IFERROR(INDEX(Табель!$H:$H,MATCH('ВЕДОМОСТЬ Лященко'!$B13,Табель!$A:$A,0)+MATCH('ВЕДОМОСТЬ Лященко'!I$3,Табель!$D$6:$D$14,0)-1),\"\")),2)","v":21},{"$f":"ROUND(IF($G13>0,IFERROR(INDEX(Табель!$E:$E,MATCH('ВЕДОМОСТЬ Лященко'!$B13,Табель!$A:$A,0)+MATCH('ВЕДОМОСТЬ Лященко'!J$3,Табель!$D$6:$D$14,0)-1),\"\")*4.2/$E$1*$G13,IFERROR(INDEX(Табель!$H:$H,MATCH('ВЕДОМОСТЬ Лященко'!$B13,Табель!$A:$A,0)+MATCH('ВЕДОМОСТЬ Лященко'!J$3,Табель!$D$6:$D$14,0)-1),\"\")),2)","v":25},{"$f":"ROUND(IF($G13>0,IFERROR(INDEX(Табель!$E:$E,MATCH('ВЕДОМОСТЬ Лященко'!$B13,Табель!$A:$A,0)+MATCH('ВЕДОМОСТЬ Лященко'!K$3,Табель!$D$6:$D$14,0)-1),\"\")*4.2/$E$1*$G13,IFERROR(INDEX(Табель!$H:$H,MATCH('ВЕДОМОСТЬ Лященко'!$B13,Табель!$A:$A,0)+MATCH('ВЕДОМОСТЬ Лященко'!K$3,Табель!$D$6:$D$14,0)-1),\"\")),2)","v":0},{"$f":"ROUND(IF($G13>0,IFERROR(INDEX(Табель!$E:$E,MATCH('ВЕДОМОСТЬ Лященко'!$B13,Табель!$A:$A,0)+MATCH('ВЕДОМОСТЬ Лященко'!L$3,Табель!$D$6:$D$14,0)-1),\"\")*4.2/$E$1*$G13,IFERROR(INDEX(Табель!$H:$H,MATCH('ВЕДОМОСТЬ Лященко'!$B13,Табель!$A:$A,0)+MATCH('ВЕДОМОСТЬ Лященко'!L$3,Табель!$D$6:$D$14,0)-1),\"\")),2)","v":0},{"$f":"ROUND(IF($G13>0,IFERROR(INDEX(Табель!$E:$E,MATCH('ВЕДОМОСТЬ Лященко'!$B13,Табель!$A:$A,0)+MATCH('ВЕДОМОСТЬ Лященко'!M$3,Табель!$D$6:$D$14,0)-1),\"\")*4.2/$E$1*$G13,IFERROR(INDEX(Табель!$H:$H,MATCH('ВЕДОМОСТЬ Лященко'!$B13,Табель!$A:$A,0)+MATCH('ВЕДОМОСТЬ Лященко'!M$3,Табель!$D$6:$D$14,0)-1),\"\")),2)","v":0},{"$f":"ROUND(IF($G13=0,IFERROR(INDEX(Табель!$F:$F,MATCH('ВЕДОМОСТЬ Лященко'!$B13,Табель!$A:$A,0)+1),\"\"),IFERROR(INDEX(Табель!$F:$F,MATCH('ВЕДОМОСТЬ Лященко'!$B13,Табель!$A:$A,0)+1),\"\")*4.2/$E$1*$G13),2)","v":0},{"$f":"ROUND(IF($G13=0,IFERROR(INDEX(Табель!$G:$G,MATCH('ВЕДОМОСТЬ Лященко'!$B13,Табель!$A:$A,0)+1),\"\"),IFERROR(INDEX(Табель!$G:$G,MATCH('ВЕДОМОСТЬ Лященко'!$B13,Табель!$A:$A,0)+1),\"\")*4.2/$E$1*$G13),2)","v":0},{"$f":"IF($G13>0,IFERROR(INDEX(Табель!$E:$E,MATCH('ВЕДОМОСТЬ Лященко'!$B13,Табель!$A:$A,0)+MATCH('ВЕДОМОСТЬ Лященко'!P$3,Табель!$D$6:$D$14,0)-1),\"\")*4.2/$E$1*$G13,IFERROR(INDEX(Табель!$H:$H,MATCH('ВЕДОМОСТЬ Лященко'!$B13,Табель!$A:$A,0)+MATCH('ВЕДОМОСТЬ Лященко'!P$3,Табель!$D$6:$D$14,0)-1),\"\"))","v":0}]
[null,23,"Дубинина Евгения Ивановна",null,67.5,0,null,{"$f":"ROUND(IF($G14>0,IFERROR(INDEX(Табель!$E:$E,MATCH('ВЕДОМОСТЬ Лященко'!$B14,Табель!$A:$A,0)+MATCH('ВЕДОМОСТЬ Лященко'!H$3,Табель!$D$6:$D$14,0)-1),\"\")*4.2/$E$1*$G14,IFERROR(INDEX(Табель!$H:$H,MATCH('ВЕДОМОСТЬ Лященко'!$B14,Табель!$A:$A,0)+MATCH('ВЕДОМОСТЬ Лященко'!H$3,Табель!$D$6:$D$14,0)-1),\"\")),2)","v":84},{"$f":"ROUND(IF($G14>0,IFERROR(INDEX(Табель!$E:$E,MATCH('ВЕДОМОСТЬ Лященко'!$B14,Табель!$A:$A,0)+MATCH('ВЕДОМОСТЬ Лященко'!I$3,Табель!$D$6:$D$14,0)-1),\"\")*4.2/$E$1*$G14,IFERROR(INDEX(Табель!$H:$H,MATCH('ВЕДОМОСТЬ Лященко'!$B14,Табель!$A:$A,0)+MATCH('ВЕДОМОСТЬ Лященко'!I$3,Табель!$D$6:$D$14,0)-1),\"\")),2)","v":13},{"$f":"ROUND(IF($G14>0,IFERROR(INDEX(Табель!$E:$E,MATCH('ВЕДОМОСТЬ Лященко'!$B14,Табель!$A:$A,0)+MATCH('ВЕДОМОСТЬ Лященко'!J$3,Табель!$D$6:$D$14,0)-1),\"\")*4.2/$E$1*$G14,IFERROR(INDEX(Табель!$H:$H,MATCH('ВЕДОМОСТЬ Лященко'!$B14,Табель!$A:$A,0)+MATCH('ВЕДОМОСТЬ Лященко'!J$3,Табель!$D$6:$D$14,0)-1),\"\")),2)","v":25},{"$f":"ROUND(IF($G14>0,IFERROR(INDEX(Табель!$E:$E,MATCH('ВЕДОМОСТЬ Лященко'!$B14,Табель!$A:$A,0)+MATCH('ВЕДОМОСТЬ Лященко'!K$3,Табель!$D$6:$D$14,0)-1),\"\")*4.2/$E$1*$G14,IFERROR(INDEX(Табель!$H:$H,MATCH('ВЕДОМОСТЬ Лященко'!$B14,Табель!$A:$A,0)+MATCH('ВЕДОМОСТЬ Лященко'!K$3,Табель!$D$6:$D$14,0)-1),\"\")),2)","v":0},{"$f":"ROUND(IF($G14>0,IFERROR(INDEX(Табель!$E:$E,MATCH('ВЕДОМОСТЬ Лященко'!$B14,Табель!$A:$A,0)+MATCH('ВЕДОМОСТЬ Лященко'!L$3,Табель!$D$6:$D$14,0)-1),\"\")*4.2/$E$1*$G14,IFERROR(INDEX(Табель!$H:$H,MATCH('ВЕДОМОСТЬ Лященко'!$B14,Табель!$A:$A,0)+MATCH('ВЕДОМОСТЬ Лященко'!L$3,Табель!$D$6:$D$14,0)-1),\"\")),2)","v":0},{"$f":"ROUND(IF($G14>0,IFERROR(INDEX(Табель!$E:$E,MATCH('ВЕДОМОСТЬ Лященко'!$B14,Табель!$A:$A,0)+MATCH('ВЕДОМОСТЬ Лященко'!M$3,Табель!$D$6:$D$14,0)-1),\"\")*4.2/$E$1*$G14,IFERROR(INDEX(Табель!$H:$H,MATCH('ВЕДОМОСТЬ Лященко'!$B14,Табель!$A:$A,0)+MATCH('ВЕДОМОСТЬ Лященко'!M$3,Табель!$D$6:$D$14,0)-1),\"\")),2)","v":0},{"$f":"ROUND(IF($G14=0,IFERROR(INDEX(Табель!$F:$F,MATCH('ВЕДОМОСТЬ Лященко'!$B14,Табель!$A:$A,0)+1),\"\"),IFERROR(INDEX(Табель!$F:$F,MATCH('ВЕДОМОСТЬ Лященко'!$B14,Табель!$A:$A,0)+1),\"\")*4.2/$E$1*$G14),2)","v":0},{"$f":"ROUND(IF($G14=0,IFERROR(INDEX(Табель!$G:$G,MATCH('ВЕДОМОСТЬ Лященко'!$B14,Табель!$A:$A,0)+1),\"\"),IFERROR(INDEX(Табель!$G:$G,MATCH('ВЕДОМОСТЬ Лященко'!$B14,Табель!$A:$A,0)+1),\"\")*4.2/$E$1*$G14),2)","v":0},{"$f":"IF($G14>0,IFERROR(INDEX(Табель!$E:$E,MATCH('ВЕДОМОСТЬ Лященко'!$B14,Табель!$A:$A,0)+MATCH('ВЕДОМОСТЬ Лященко'!P$3,Табель!$D$6:$D$14,0)-1),\"\")*4.2/$E$1*$G14,IFERROR(INDEX(Табель!$H:$H,MATCH('ВЕДОМОСТЬ Лященко'!$B14,Табель!$A:$A,0)+MATCH('ВЕДОМОСТЬ Лященко'!P$3,Табель!$D$6:$D$14,0)-1),\"\"))","v":0}]
[null,24,"Дуйшебаева Суйумкан Омушевна",null,67.5,0.3,null,{"$f":"ROUND(IF($G15>0,IFERROR(INDEX(Табель!$E:$E,MATCH('ВЕДОМОСТЬ Лященко'!$B15,Табель!$A:$A,0)+MATCH('ВЕДОМОСТЬ Лященко'!H$3,Табель!$D$6:$D$14,0)-1),\"\")*4.2/$E$1*$G15,IFERROR(INDEX(Табель!$H:$H,MATCH('ВЕДОМОСТЬ Лященко'!$B15,Табель!$A:$A,0)+MATCH('ВЕДОМОСТЬ Лященко'!H$3,Табель!$D$6:$D$14,0)-1),\"\")),2)","v":90},{"$f":"ROUND(IF($G15>0,IFERROR(INDEX(Табель!$E:$E,MATCH('ВЕДОМОСТЬ Лященко'!$B15,Табель!$A:$A,0)+MATCH('ВЕДОМОСТЬ Лященко'!I$3,Табель!$D$6:$D$14,0)-1),\"\")*4.2/$E$1*$G15,IFERROR(INDEX(Табель!$H:$H,MATCH('ВЕДОМОСТЬ Лященко'!$B15,Табель!$A:$A,0)+MATCH('ВЕДОМОСТЬ Лященко'!I$3,Табель!$D$6:$D$14,0)-1),\"\")),2)","v":17},{"$f":"ROUND(IF($G15>0,IFERROR(INDEX(Табель!$E:$E,MATCH('ВЕДОМОСТЬ Лященко'!$B15,Табель!$A:$A,0)+MATCH('ВЕДОМОСТЬ Лященко'!J$3,Табель!$D$6:$D$14,0)-1),\"\")*4.2/$E$1*$G15,IFERROR(INDEX(Табель!$H:$H,MATCH('ВЕДОМОСТЬ Лященко'!$B15,Табель!$A:$A,0)+MATCH('ВЕДОМОСТЬ Лященко'!J$3,Табель!$D$6:$D$14,0)-1),\"\")),2)","v":26},{"$f":"ROUND(IF($G15>0,IFERROR(INDEX(Табель!$E:$E,MATCH('ВЕДОМОСТЬ Лященко'!$B15,Табель!$A:$A,0)+MATCH('ВЕДОМОСТЬ Лященко'!K$3,Табель!$D$6:$D$14,0)-1),\"\")*4.2/$E$1*$G15,IFERROR(INDEX(Табель!$H:$H,MATCH('ВЕДОМОСТЬ Лященко'!$B15,Табель!$A:$A,0)+MATCH('ВЕДОМОСТЬ Лященко'!K$3,Табель!$D$6:$D$14,0)-1),\"\")),2)","v":0},{"$f":"ROUND(IF($G15>0,IFERROR(INDEX(Табель!$E:$E,MATCH('ВЕДОМОСТЬ Лященко'!$B15,Табель!$A:$A,0)+MATCH('ВЕДОМОСТЬ Лященко'!L$3,Табель!$D$6:$D$14,0)-1),\"\")*4.2/$E$1*$G15,IFERROR(INDEX(Табель!$H:$H,MATCH('ВЕДОМОСТЬ Лященко'!$B15,Табель!$A:$A,0)+MATCH('ВЕДОМОСТЬ Лященко'!L$3,Табель!$D$6:$D$14,0)-1),\"\")),2)","v":0},{"$f":"ROUND(IF($G15>0,IFERROR(INDEX(Табель!$E:$E,MATCH('ВЕДОМОСТЬ Лященко'!$B15,Табель!$A:$A,0)+MATCH('ВЕДОМОСТЬ Лященко'!M$3,Табель!$D$6:$D$14,0)-1),\"\")*4.2/$E$1*$G15,IFERROR(INDEX(Табель!$H:$H,MATCH('ВЕДОМОСТЬ Лященко'!$B15,Табель!$A:$A,0)+MATCH('ВЕДОМОСТЬ Лященко'!M$3,Табель!$D$6:$D$14,0)-1),\"\")),2)","v":0},{"$f":"ROUND(IF($G15=0,IFERROR(INDEX(Табель!$F:$F,MATCH('ВЕДОМОСТЬ Лященко'!$B15,Табель!$A:$A,0)+1),\"\"),IFERROR(INDEX(Табель!$F:$F,MATCH('ВЕДОМОСТЬ Лященко'!$B15,Табель!$A:$A,0)+1),\"\")*4.2/$E$1*$G15),2)","v":36},{"$f":"ROUND(IF($G15=0,IFERROR(INDEX(Табель!$G:$G,MATCH('ВЕДОМОСТЬ Лященко'!$B15,Табель!$A:$A,0)+1),\"\"),IFERROR(INDEX(Табель!$G:$G,MATCH('ВЕДОМОСТЬ Лященко'!$B15,Табель!$A:$A,0)+1),\"\")*4.2/$E$1*$G15),2)","v":0},{"$f":"IF($G15>0,IFERROR(INDEX(Табель!$E:$E,MATCH('ВЕДОМОСТЬ Лященко'!$B15,Табель!$A:$A,0)+MATCH('ВЕДОМОСТЬ Лященко'!P$3,Табель!$D$6:$D$14,0)-1),\"\")*4.2/$E$1*$G15,IFERROR(INDEX(Табель!$H:$H,MATCH('ВЕДОМОСТЬ Лященко'!$B15,Табель!$A:$A,0)+MATCH('ВЕДОМОСТЬ Лященко'!P$3,Табель!$D$6:$D$14,0)-1),\"\"))","v":0}]

{"sheet":"Табель","index":1,"n_rows":148,"n_cols":39,"rows_kept":148,"cut":false,"hidden":false,"merged":[[3,6,4,6],[3,7,4,7],[27,1,29,2],[34,1,35,2],[16,0,26,0],[16,1,18,2],[23,1,24,2],[3,0,4,0],[3,1,4,2],[3,3,4,3],[3,4,4,4],[3,5,4,5],[12,1,13,2],[9,1,11,2],[5,1,7,2],[5,0,15,0],[93,1,95,2],[100,1,101,2],[104,0,114,0],[27,0,37,0],[71,0,81,0],[71,1,73,2],[78,1,79,2],[104,1,106,2],[111,1,112,2],[137,0,147,0],[137,1,139,2],[144,1,145,2],[38,0,48,0],[38,1,40,2],[45,1,46,2],[49,0,59,0],[49,1,51,2],[56,1,57,2],[60,0,70,0],[60,1,62,2],[67,1,68,2],[82,0,92,0],[82,1,84,2],[89,1,90,2],[93,0,103,0],[115,0,125,0],[115,1,117,2],[122,1,123,2],[126,0,136,0],[126,1,128,2],[133,1,134,2]]}
[]
[]
[null," 2018-ж."]
[null,"ФИО",null,"Иш убактысы","Саат/ Ств","Тил","уйдо окуу","Бард-гы","иш","жш","дш","шш","шр","бш","жм","иш","жш","дш","шш","шр","бш","жм","иш","жш","дш","шш","шр","бш","жм","иш","жш","дш","шш","шр","бш","жм","иш","жш","дш"]
[null,null,null,null,null,null,null,null,1,2,3,4,5,6,7,8,9,10,11,12,13,14,15,16,17,18,19,20,21,22,23,24,25,26,27,28,29,30,31]
[1,"Перегородова Ольга Ивановна",null,"директор",1,null,null,{"$f":"COUNTIF(I6:AM6,\"7\")","v":21},null,"жш",7,7,7,7,7,null,"жш",7,7,7,7,7,null,"жш",7,7,7,7,7,null,"жш",7,7,7,7,7,null,"жш",7]
[null,null,null,"ОС",null,null,null,{"$f":"SUM(I7:AM7)","v":0},null,"жш",null,null,null,null,null,null,"жш",null,null,null,null,null,null,"жш",null,null,null,null,null,null,"жш",null,null,null,null,null,null,"жш"]
[null,null,null,"ДС",null,null,null,0,null,"жш",null,null,null,null,null,null,"жш",null,null,null,null,null,null,"жш",null,null,null,null,null,null,"жш",null,null,null,null,null,null,"жш"]
[null,null,"Всш","ЧО,ТС ",null,null,null,0,null,"жш",null,null,null,null,null,null,"жш",null,null,null,null,null,null,"жш",null,null,null,null,null,null,"жш",null,null,null,null,null,null,"жш"]
[null,null,null,"ЗОС",null,null,null,0,null,"жш",null,null,null,null,null,null,"жш",null,null,null,null,null,null,"жш",null,null,null,null,null,null,"жш",null,null,null,null,null,null,"жш"]
[null,null,null,"ЗДС",null,null,null,0,null,"жш",null,null,null,null,null,null,"жш",null,null,null,null,null,null,"жш",null,null,null,null,null,null,"жш",null,null,null,null,null,null,"жш"]
[null,null,null,"ЗЧО,ТС ",null,null,null,0,null,"жш",null,null,null,null,null,null,"жш",null,null,null,null,null,null,"жш",null,null,null,null,null,null,"жш",null,null,null,null,null,null,"жш"]
[null,null,null,"ИЙИРИМ",null,null,null,0,null,"жш",null,null,null,null,null,null,"жш",null,null,null,null,null,null,"жш",null,null,null,null,null,null,"жш",null,null,null,null,null,null,"жш"]
[null,null,null,null,null,null,null,0,null,"жш",null,null,null,null,null,null,"жш",null,null,null,null,null,null,"жш",null,null,null,null,null,null,"жш",null,null,null,null,null,null,"жш"]
[null,67.5,0.3,"ЖЫЙ-Ы",{"$f":"SUM(E7:E14)","v":0},null,null,{"$f":"SUM(H7:H14)","v":0},{"$f":"SUM(I7:I14)","v":0},{"$f":"SUM(J7:J14)","v":0},0,0,0,0,0,0,0,0,0,0,0,0,0,0,0,0,0,0,0,0,0,0,0,0,0,0,0,{"$f":"SUM(AL7:AL14)","v":0},{"$f":"SUM(AM7:AM14)","v":0}]
[null,null,null,"ИШ КУН-Р",null,null,null,{"$f":"SUM(I15:AM15)","v":0}]
[14,"Бочарникова Оксана Анатольевна",null,null,null,null,null,{"$f":"COUNTIF(I17:AM17,\"7\")","v":0},null,"жш",null,null,null,null,null,null,"жш",null,null,null,null,null,null,"жш",null,null,null,null,null,null,"жш",null,null,null,null,null,null,"жш"]
[null,null,null,"ОС",11,null,null,{"$f":"SUM(I18:AM18)","v":45},null,"жш",1,4,4,2,null,null,"жш",1,4,4,2,null,null,"жш",1,4,4,2,null,null,"жш",1,4,4,2,null,null,"жш",1]
[null,null,null,"ДС",2,null,null,8,null,"жш",null,1,1,null,null,null,"жш",null,1,1,null,null,null,"жш",null,1,1,null,null,null,"жш",null,1,1,null,null,null,"жш"]
[null,null,"сред","ЧО,ТС ",6,null,null,26,null,"жш",2,1,1,1,1,null,"жш",2,1,1,1,1,null,"жш",2,1,1,1,1,null,"жш",2,1,1,1,1,null,"жш",2]
[null,null,null,"ЗОС",null,null,null,0,null,"жш",null,null,null,null,null,null,"жш",null,null,null,null,null,null,"жш",null,null,null,null,null,null,"жш",null,null,null,null,null,null,"жш"]
[null,null,null,"ЗДС",null,null,null,0,null,"жш",null,null,null,null,null,null,"жш",null,null,null,null,null,null,"жш",null,null,null,null,null,null,"жш",null,null,null,null,null,null,"жш"]
[null,null,null,"ЗЧО,ТС ",null,null,null,0,null,"жш",null,null,null,null,null,null,"жш",null,null,null,null,null,null,"жш",null,null,null,null,null,null,"жш",null,null,null,null,null,null,"жш"]
[null,"труд/ОБЖ/естеств",null,"ИЙИРИМ",15,null,null,63,null,"жш",3,3,3,3,3,null,"жш",3,3,3,3,3,null,"жш",3,3,3,3,3,null,"жш",3,3,3,3,3,null,"жш",3]
[null,null,null,null,null,null,null,0,null,"жш",null,null,null,null,null,null,"жш",null,null,null,null,null,null,"жш",null,null,null,null,null,null,"жш",null,null,null,null,null,null,"жш"]
[null,60,0.1,"ЖЫЙ-Ы",{"$f":"SUM(E18:E25)","v":34},null,null,{"$f":"SUM(H18:H25)","v":142},{"$f":"SUM(I18:I25)","v":0},{"$f":"SUM(J18:J25)","v":0},6,9,9,6,4,0,0,6,9,9,6,4,0,0,6,9,9,6,4,0,0,6,9,9,6,4,0,{"$f":"SUM(AL18:AL25)","v":0},{"$f":"SUM(AM18:AM25)","v":6}]
[null,null,null,"ИШ КУН-Р",null,null,null,{"$f":"SUM(I26:AM26)","v":142}]
[15,"Бучина Татьяна Васильевна",null,null,null,null,null,{"$f":"COUNTIF(I28:AM28,\"7\")","v":0},null,"жш",null,null,null,null,null,null,"жш",null,null,null,null,null,null,"жш",null,null,null,null,null,null,"жш",null,null,null,null,null,null,"жш"]
[null,null,null,"ОС",16,null,null,{"$f":"SUM(I29:AM29)","v":67},null,"жш",3,3,3,3,4,null,"жш",3,3,3,3,4,null,"жш",3,3,3,3,4,null,"жш",3,3,3,3,4,null,"жш",3]
[null,null,null,"ДС",4,null,null,16,null,"жш",null,1,1,1,1,null,"жш",null,1,1,1,1,null,"жш",null,1,1,1,1,null,"жш",null,1,1,1,1,null,"жш"]
[null,"8 Б","Всш","ЧО,ТС ",6,null,null,25,null,"жш",1,1,1,1,2,null,"жш",1,1,1,1,2,null,"жш",1,1,1,1,2,null,"жш",1,1,1,1,2,null,"жш",1]
[null,null,null,"ЗОС",null,null,null,0,null,"жш",null,null,null,null,null,null,"жш",null,null,null,null,null,null,"жш",null,null,null,null,null,null,"жш",null,null,null,null,null,null,"жш"]
[null,null,null,"ЗДС",null,null,null,0,null,"жш",null,null,null,null,null,null,"жш",null,null,null,null,null,null,"жш",null,null,null,null,null,null,"жш",null,null,null,null,null,null,"жш"]
[null,null,null,"ЗЧО,ТС ",null,null,null,0,null,"жш",null,null,null,null,null,null,"жш",null,null,null,null,null,null,"жш",null,null,null,null,null,null,"жш",null,null,null,null,null,null,"жш"]
[null,"математика",null,"ИЙИРИМ",5,null,null,20,null,"жш",null,2,2,1,null,null,"жш",null,2,2,1,null,null,"жш",null,2,2,1,null,null,"жш",null,2,2,1,null,null,"жш"]
[null,null,null,null,null,null,null,0,null,"жш",null,null,null,null,null,null,"жш",null,null,null,null,null,null,"жш",null,null,null,null,null,null,"жш",null,null,null,null,null,null,"жш"]
[null,67.5,0.3,"ЖЫЙ-Ы",{"$f":"SUM(E29:E36)","v":31},null,null,{"$f":"SUM(H29:H36)","v":128},{"$f":"SUM(I29:I36)","v":0},{"$f":"SUM(J29:J36)","v":0},4,7,7,6,7,0,0,4,7,7,6,7,0,0,4,7,7,6,7,0,0,4,7,7,6,7,0,{"$f":"SUM(AL29:AL36)","v":0},{"$f":"SUM(AM29:AM36)","v":4}]
[null,null,null,"ИШ КУН-Р",null,null,null,{"$f":"SUM(I37:AM37)","v":128}]
[16,"Джумабаева Анара Акимкановна",null,null,null,null,null,{"$f":"COUNTIF(I39:AM39,\"7\")","v":0},null,"жш",null,null,null,null,null,null,"жш",null,null,null,null,null,null,"жш",null,null,null,null,null,null,"жш",null,null,null,null,null,null,"жш"]
[null,null,null,"ОС",12,12,null,{"$f":"SUM(I40:AM40)","v":48},null,"жш",null,2,2,5,3,null,"жш",null,2,2,5,3,null,"жш",null,2,2,5,3,null,"жш",null,2,2,5,3,null,"жш"]
[null,null,null,"ДС",5,null,null,20,null,"жш",null,1,1,2,1,null,"жш",null,1,1,2,1,null,"жш",null,1,1,2,1,null,"жш",null,1,1,2,1,null,"жш"]
[null,null,"Всш","ЧО,ТС ",2,null,null,8,null,"жш",null,1,null,1,null,null,"жш",null,1,null,1,null,null,"жш",null,1,null,1,null,null,"жш",null,1,null,1,null,null,"жш"]
[null,null,null,"ЗОС",null,null,null,0,null,"жш",null,null,null,null,null,null,"жш",null,null,null,null,null,null,"жш",null,null,null,null,null,null,"жш",null,null,null,null,null,null,"жш"]
[null,null,null,"ЗДС",null,null,null,0,null,"жш",null,null,null,null,null,null,"жш",null,null,null,null,null,null,"жш",null,null,null,null,null,null,"жш",null,null,null,null,null,null,"жш"]
[null,null,null,"ЗЧО,ТС ",null,null,null,0,null,"жш",null,null,null,null,null,null,"жш",null,null,null,null,null,null,"жш",null,null,null,null,null,null,"жш",null,null,null,null,null,null,"жш"]
[null,"орус тили ",null,"ИЙИРИМ",null,null,null,0,null,"жш",null,null,null,null,null,null,"жш",null,null,null,null,null,null,"жш",null,null,null,null,null,null,"жш",null,null,null,null,null,null,"жш"]
[null,null,null,null,null,null,null,0,null,"жш",null,null,null,null,null,null,"жш",null,null,null,null,null,null,"жш",null,null,null,null,null,null,"жш",null,null,null,null,null,null,"жш"]
[null,67.5,0.3,"ЖЫЙ-Ы",{"$f":"SUM(E40:E47)","v":19},null,null,{"$f":"SUM(H40:H47)","v":76},{"$f":"SUM(I40:I47)","v":0},{"$f":"SUM(J40:J47)","v":0},0,4,3,8,4,0,0,0,4,3,8,4,0,0,0,4,3,8,4,0,0,0,4,3,8,4,0,{"$f":"SUM(AL40:AL47)","v":0},{"$f":"SUM(AM40:AM47)","v":0}]
[null,null,null,"ИШ КУН-Р",null,null,null,{"$f":"SUM(I48:AM48)","v":76}]
[17,"Джумабаева Анара Акимкановна",null,null,null,null,null,{"$f":"COUNTIF(I50:AM50,\"7\")","v":0},null,"жш",null,null,null,null,null,null,"жш",null,null,null,null,null,null,"жш",null,null,null,null,null,null,"жш",null,null,null,null,null,null,"жш"]
[null,null,null,"ОС",5,20,null,{"$f":"SUM(I51:AM51)","v":20},null,"жш",null,2,2,1,null,null,"жш",null,2,2,1,null,null,"жш",null,2,2,1,null,null,"жш",null,2,2,1,null,null,"жш"]
[null,null,null,"ДС",null,null,null,0,null,"жш",null,null,null,null,null,null,"жш",null,null,null,null,null,null,"жш",null,null,null,null,null,null,"жш",null,null,null,null,null,null,"жш"]
[null,null,"Всш","ЧО,ТС ",null,null,null,0,null,"жш",null,null,null,null,null,null,"жш",null,null,null,null,null,null,"жш",null,null,null,null,null,null,"жш",null,null,null,null,null,null,"жш"]
[null,null,null,"ЗОС",null,null,null,0,null,"жш",null,null,null,null,null,null,"жш",null,null,null,null,null,null,"жш",null,null,null,null,null,null,"жш",null,null,null,null,null,null,"жш"]
[null,null,null,"ЗДС",null,null,null,0,null,"жш",null,null,null,null,null,null,"жш",null,null,null,null,null,null,"жш",null,null,null,null,null,null,"жш",null,null,null,null,null,null,"жш"]
[null,null,null,"ЗЧО,ТС ",null,null,null,0,null,"жш",null,null,null,null,null,null,"жш",null,null,null,null,null,null,"жш",null,null,null,null,null,null,"жш",null,null,null,null,null,null,"жш"]
[null,"орус тили ",null,"ИЙИРИМ",null,null,null,0,null,"жш",null,null,null,null,null,null,"жш",null,null,null,null,null,null,"жш",null,null,null,null,null,null,"жш",null,null,null,null,null,null,"жш"]
[null,null,null,null,null,null,null,0,null,"жш",null,null,null,null,null,null,"жш",null,null,null,null,null,null,"жш",null,null,null,null,null,null,"жш",null,null,null,null,null,null,"жш"]
[null,81,0.3,"ЖЫЙ-Ы",{"$f":"SUM(E51:E58)","v":5},null,null,{"$f":"SUM(H51:H58)","v":20},{"$f":"SUM(I51:I58)","v":0},{"$f":"SUM(J51:J58)","v":0},0,2,2,1,0,0,0,0,2,2,1,0,0,0,0,2,2,1,0,0,0,0,2,2,1,0,0,{"$f":"SUM(AL51:AL58)","v":0},{"$f":"SUM(AM51:AM58)","v":0}]
[null,null,null,"ИШ КУН-Р",null,null,null,{"$f":"SUM(I59:AM59)","v":20}]
[18,"Дмитриченко Анна Сергеевна",null,null,null,null,null,{"$f":"COUNTIF(I61:AM61,\"7\")","v":0},null,"жш",null,null,null,null,null,null,"жш",null,null,null,null,null,null,"жш",null,null,null,null,null,null,"жш",null,null,null,null,null,null,"жш"]
[null,null,null,"ОС",19,null,null,{"$f":"SUM(I62:AM62)","v":80},null,"жш",4,4,4,3,4,null,"жш",4,4,4,3,4,null,"жш",4,4,4,3,4,null,"жш",4,4,4,3,4,null,"жш",4]
[null,null,null,"ДС",6,null,null,26,null,"жш",2,1,1,1,1,null,"жш",2,1,1,1,1,null,"жш",2,1,1,1,1,null,"жш",2,1,1,1,1,null,"жш",2]
[null,"2 Б","сред","ЧО,ТС ",6,null,null,26,null,"жш",2,1,1,1,1,null,"жш",2,1,1,1,1,null,"жш",2,1,1,1,1,null,"жш",2,1,1,1,1,null,"жш",2]
[null,null,null,"ЗОС",null,null,null,0,null,"жш",null,null,null,null,null,null,"жш",null,null,null,null,null,null,"жш",null,null,null,null,null,null,"жш",null,null,null,null,null,null,"жш"]
[null,null,null,"ЗДС",null,null,null,0,null,"жш",null,null,null,null,null,null,"жш",null,null,null,null,null,null,"жш",null,null,null,null,null,null,"жш",null,null,null,null,null,null,"жш"]
[null,null,null,"ЗЧО,ТС ",null,null,null,0,null,"жш",null,null,null,null,null,null,"жш",null,null,null,null,null,null,"жш",null,null,null,null,null,null,"жш",null,null,null,null,null,null,"жш"]
[null,"нач.классы",null,"ИЙИРИМ",null,null,null,0,null,"жш",null,null,null,null,null,null,"жш",null,null,null,null,null,null,"жш",null,null,null,null,null,null,"жш",null,null,null,null,null,null,"жш"]
[null,null,null,null,null,null,null,0,null,"жш",null,null,null,null,null,null,"жш",null,null,null,null,null,null,"жш",null,null,null,null,null,null,"жш",null,null,null,null,null,null,"жш"]
[null,72,0.2,"ЖЫЙ-Ы",{"$f":"SUM(E62:E69)","v":31},null,null,{"$f":"SUM(H62:H69)","v":132},{"$f":"SUM(I62:I69)","v":0},{"$f":"SUM(J62:J69)","v":0},8,6,6,5,6,0,0,8,6,6,5,6,0,0,8,6,6,5,6,0,0,8,6,6,5,6,0,{"$f":"SUM(AL62:AL69)","v":0},{"$f":"SUM(AM62:AM69)","v":8}]
[null,null,null,"ИШ КУН-Р",null,null,null,{"$f":"SUM(I70:AM70)","v":132}]
[19,"Дмитриченко Анна Сергеевна",null,null,null,null,null,{"$f":"COUNTIF(I72:AM72,\"7\")","v":0},null,"жш",null,null,null,null,null,null,"жш",null,null,null,null,null,null,"жш",null,null,null,null,null,null,"жш",null,null,null,null,null,null,"жш"]
[null,null,null,"ОС",15,null,null,{"$f":"SUM(I73:AM73)","v":63},null,"жш",3,3,3,3,3,null,"жш",3,3,3,3,3,null,"жш",3,3,3,3,3,null,"жш",3,3,3,3,3,null,"жш",3]
[null,null,null,"ДС",1.5,null,null,6,null,"жш",null,null,1.5,null,null,null,"жш",null,null,1.5,null,null,null,"жш",null,null,1.5,null,null,null,"жш",null,null,1.5,null,null,null,"жш"]
[null,"0кл","сред","ЧО,ТС ",null,null,null,0,null,"жш",null,null,null,null,null,null,"жш",null,null,null,null,null,null,"жш",null,null,null,null,null,null,"жш",null,null,null,null,null,null,"жш"]
[null,null,null,"ЗОС",null,null,null,0,null,"жш",null,null,null,null,null,null,"жш",null,null,null,null,null,null,"жш",null,null,null,null,null,null,"жш",null,null,null,null,null,null,"жш"]
[null,null,null,"ЗДС",null,null,null,0,null,"жш",null,null,null,null,null,null,"жш",null,null,null,null,null,null,"жш",null,null,null,null,null,null,"жш",null,null,null,null,null,null,"жш"]
[null,null,null,"ЗЧО,ТС ",null,null,null,0,null,"жш",null,null,null,null,null,null,"жш",null,null,null,null,null,null,"жш",null,null,null,null,null,null,"жш",null,null,null,null,null,null,"жш"]
[null,"480 час",null,"ИЙИРИМ",null,null,null,0,null,"жш",null,null,null,null,null,null,"жш",null,null,null,null,null,null,"жш",null,null,null,null,null,null,"жш",null,null,null,null,null,null,"жш"]
[null,null,null,null,null,null,null,0,null,"жш",null,null,null,null,null,null,"жш",null,null,null,null,null,null,"жш",null,null,null,null,null,null,"жш",null,null,null,null,null,null,"жш"]
[null,72,0.2,"ЖЫЙ-Ы",{"$f":"SUM(E73:E80)","v":16.5},null,null,{"$f":"SUM(H73:H80)","v":69},{"$f":"SUM(I73:I80)","v":0},{"$f":"SUM(J73:J80)","v":0},3,3,4.5,3,3,0,0,3,3,4.5,3,3,0,0,3,3,4.5,3,3,0,0,3,3,4.5,3,3,0,0,3]
[null,null,null,"ИШ КУН-Р",null,null,null,{"$f":"SUM(I81:AM81)","v":69}]
[20,"Добрыднева Евгения Петровна",null,null,null,null,null,{"$f":"COUNTIF(I83:AM83,\"7\")","v":0},null,"жш",null,null,null,null,null,null,"жш",null,null,null,null,null,null,"жш",null,null,null,null,null,null,"жш",null,null,null,null,null,null,"жш"]
[null,null,null,"ОС",20,null,null,{"$f":"SUM(I84:AM84)","v":84},null,"жш",4,4,4,4,4,null,"жш",4,4,4,4,4,null,"жш",4,4,4,4,4,null,"жш",4,4,4,4,4,null,"жш",4]
[null,null,null,"ДС",4,null,null,17,null,"жш",1,1,1,1,null,null,"жш",1,1,1,1,null,null,"жш",1,1,1,1,null,null,"жш",1,1,1,1,null,null,"жш",1]
[null,"6 В","Всш","ЧО,ТС ",8,null,null,34,null,"жш",2,2,2,1,1,null,"жш",2,2,2,1,1,null,"жш",2,2,2,1,1,null,"жш",2,2,2,1,1,null,"жш",2]
[null,null,null,"ЗОС",null,null,null,0,null,"жш",null,null,null,null,null,null,"жш",null,null,null,null,null,null,"жш",null,null,null,null,null,null,"жш",null,null,null,null,null,null,"жш"]
[null,null,null,"ЗДС",null,null,null,0,null,"жш",null,null,null,null,null,null,"жш",null,null,null,null,null,null,"жш",null,null,null,null,null,null,"жш",null,null,null,null,null,null,"жш"]
[null,null,null,"ЗЧО,ТС ",null,null,null,0,null,"жш",null,null,null,null,null,null,"жш",null,null,null,null,null,null,"жш",null,null,null,null,null,null,"жш",null,null,null,null,null,null,"жш"]
[null,"английс.язык",null,"ИЙИРИМ",null,null,null,0,null,"жш",null,null,null,null,null,null,"жш",null,null,null,null,null,null,"жш",null,null,null,null,null,null,"жш",null,null,null,null,null,null,"жш"]
[null,null,null,null,null,null,null,0,null,"жш",null,null,null,null,null,null,"жш",null,null,null,null,null,null,"жш",null,null,null,null,null,null,"жш",null,null,null,null,null,null,"жш"]
[null,67.5,0.1,"ЖЫЙ-Ы",{"$f":"SUM(E84:E91)","v":32},null,null,{"$f":"SUM(H84:H91)","v":135},{"$f":"SUM(I84:I91)","v":0},{"$f":"SUM(J84:J91)","v":0},7,7,7,6,5,0,0,7,7,7,6,5,0,0,7,7,7,6,5,0,0,7,7,7,6,5,0,{"$f":"SUM(AL84:AL91)","v":0},{"$f":"SUM(AM84:AM91)","v":7}]
[null,null,null,"ИШ КУН-Р",null,null,null,{"$f":"SUM(I92:AM92)","v":135}]
[21,"Добрыднева Евгения Петровна",null,null,null,null,null,{"$f":"COUNTIF(I94:AM94,\"7\")","v":0},null,"жш",null,null,null,null,null,null,"жш",null,null,null,null,null,null,"жш",null,null,null,null,null,null,"жш",null,null,null,null,null,null,"жш"]
[null,null,null,"ОС",4,null,null,{"$f":"SUM(I95:AM95)","v":18},null,"жш",2,1,1,null,null,null,"жш",2,1,1,null,null,null,"жш",2,1,1,null,null,null,"жш",2,1,1,null,null,null,"жш",2]
[null,null,null,"ДС",null,null,null,0,null,"жш",null,null,null,null,null,null,"жш",null,null,null,null,null,null,"жш",null,null,null,null,null,null,"жш",null,null,null,null,null,null,"жш"]
[null,"6 В","Всш","ЧО,ТС ",null,null,null,0,null,"жш",null,null,null,null,null,null,"жш",null,null,null,null,null,null,"жш",null,null,null,null,null,null,"жш",null,null,null,null,null,null,"жш"]
[null,null,null,"ЗОС",null,null,null,0,null,"жш",null,null,null,null,null,null,"жш",null,null,null,null,null,null,"жш",null,null,null,null,null,null,"жш",null,null,null,null,null,null,"жш"]
[null,null,null,"ЗДС",null,null,null,0,null,"жш",null,null,null,null,null,null,"жш",null,null,null,null,null,null,"жш",null,null,null,null,null,null,"жш",null,null,null,null,null,null,"жш"]
[null,null,null,"ЗЧО,ТС ",null,null,null,0,null,"жш",null,null,null,null,null,null,"жш",null,null,null,null,null,null,"жш",null,null,null,null,null,null,"жш",null,null,null,null,null,null,"жш"]
[null,"английс.язык",null,"ИЙИРИМ",null,null,null,0,null,"жш",null,null,null,null,null,null,"жш",null,null,null,null,null,null,"жш",null,null,null,null,null,null,"жш",null,null,null,null,null,null,"жш"]
[null,null,null,null,null,null,null,0,null,"жш",null,null,null,null,null,null,"жш",null,null,null,null,null,null,"жш",null,null,null,null,null,null,"жш",null,null,null,null,null,null,"жш"]
[null,81,0.1,"ЖЫЙ-Ы",{"$f":"SUM(E95:E102)","v":4},null,null,{"$f":"SUM(H95:H102)","v":18},{"$f":"SUM(I95:I102)","v":0},{"$f":"SUM(J95:J102)","v":0},2,1,1,0,0,0,0,2,1,1,0,0,0,0,2,1,1,0,0,0,0,2,1,1,0,0,0,{"$f":"SUM(AL95:AL102)","v":0},{"$f":"SUM(AM95:AM102)","v":2}]
[null,null,null,"ИШ КУН-Р",null,null,null,{"$f":"SUM(I103:AM103)","v":18}]
[22,"Дружинина Галина Викторовна",null,null,null,null,null,{"$f":"COUNTIF(I105:AM105,\"7\")","v":0},null,"жш",null,null,null,null,null,null,"жш",null,null,null,null,null,null,"жш",null,null,null,null,null,null,"жш",null,null,null,null,null,null,"жш"]
[null,null,null,"ОС",31,null,null,{"$f":"SUM(I106:AM106)","v":130},null,"жш",6,6,6,6,7,null,"жш",6,6,6,6,7,null,"жш",6,6,6,6,7,null,"жш",6,6,6,6,7,null,"жш",6]
[null,null,null,"ДС",5,null,null,21,null,"жш",1,1,1,1,1,null,"жш",1,1,1,1,1,null,"жш",1,1,1,1,1,null,"жш",1,1,1,1,1,null,"жш",1]
[null,"6 А","Всш","ЧО,ТС ",6,null,null,25,null,"жш",1,1,1,1,2,null,"жш",1,1,1,1,2,null,"жш",1,1,1,1,2,null,"жш",1,1,1,1,2,null,"жш",1]
[null,null,null,"ЗОС",null,null,null,0,null,"жш",null,null,null,null,null,null,"жш",null,null,null,null,null,null,"жш",null,null,null,null,null,null,"жш",null,null,null,null,null,null,"жш"]
[null,null,null,"ЗДС",null,null,null,0,null,"жш",null,null,null,null,null,null,"жш",null,null,null,null,null,null,"жш",null,null,null,null,null,null,"жш",null,null,null,null,null,null,"жш"]
[null,null,null,"ЗЧО,ТС ",null,null,null,0,null,"жш",null,null,null,null,null,null,"жш",null,null,null,null,null,null,"жш",null,null,null,null,null,null,"жш",null,null,null,null,null,null,"жш"]
[null,"Химия/ОИВТ",null,"ИЙИРИМ",null,null,null,0,null,"жш",null,null,null,null,null,null,"жш",null,null,null,null,null,null,"жш",null,null,null,null,null,null,"жш",null,null,null,null,null,null,"жш"]
[null,null,null,null,null,null,null,0,null,"жш",null,null,null,null,null,null,"жш",null,null,null,null,null,null,"жш",null,null,null,null,null,null,"жш",null,null,null,null,null,null,"жш"]
[null,67.5,0.3,"ЖЫЙ-Ы",{"$f":"SUM(E106:E113)","v":42},null,null,{"$f":"SUM(H106:H113)","v":176},{"$f":"SUM(I106:I113)","v":0},{"$f":"SUM(J106:J113)","v":0},8,8,8,8,10,0,0,8,8,8,8,10,0,0,8,8,8,8,10,0,0,8,8,8,8,10,0,{"$f":"SUM(AL106:AL113)","v":0},{"$f":"SUM(AM106:AM113)","v":8}]
[null,null,null,"ИШ КУН-Р",null,null,null,{"$f":"SUM(I114:AM114)","v":176}]
[23,"Дубинина Евгения Ивановна",null,null,null,null,null,{"$f":"COUNTIF(I116:AM116,\"7\")","v":0},null,"жш",null,null,null,null,null,null,"жш",null,null,null,null,null,null,"жш",null,null,null,null,null,null,"жш",null,null,null,null,null,null,"жш"]
[null,null,null,"ОС",20,null,null,{"$f":"SUM(I117:AM117)","v":84},null,"жш",4,4,3,3,6,null,"жш",4,4,3,3,6,null,"жш",4,4,3,3,6,null,"жш",4,4,3,3,6,null,"жш",4]
[null,null,null,"ДС",3,null,null,13,null,"жш",1,1,null,null,1,null,"жш",1,1,null,null,1,null,"жш",1,1,null,null,1,null,"жш",1,1,null,null,1,null,"жш",1]
[null,null,"Всш","ЧО,ТС ",6,null,null,25,null,"жш",1,1,1,1,2,null,"жш",1,1,1,1,2,null,"жш",1,1,1,1,2,null,"жш",1,1,1,1,2,null,"жш",1]
[null,null,null,"ЗОС",null,null,null,0,null,"жш",null,null,null,null,null,null,"жш",null,null,null,null,null,null,"жш",null,null,null,null,null,null,"жш",null,null,null,null,null,null,"жш"]
[null,null,null,"ЗДС",null,null,null,0,null,"жш",null,null,null,null,null,null,"жш",null,null,null,null,null,null,"жш",null,null,null,null,null,null,"жш",null,null,null,null,null,null,"жш"]
[null,null,null,"ЗЧО,ТС ",null,null,null,0,null,"жш",null,null,null,null,null,null,"жш",null,null,null,null,null,null,"жш",null,null,null,null,null,null,"жш",null,null,null,null,null,null,"жш"]
[null,"рисование",null,"ИЙИРИМ",null,null,null,0,null,"жш",null,null,null,null,null,null,"жш",null,null,null,null,null,null,"жш",null,null,null,null,null,null,"жш",null,null,null,null,null,null,"жш"]
[null,null,null,null,null,null,null,0,null,"жш",null,null,null,null,null,null,"жш",null,null,null,null,null,null,"жш",null,null,null,null,null,null,"жш",null,null,null,null,null,null,"жш"]
[null,67.5,0,"ЖЫЙ-Ы",{"$f":"SUM(E117:E124)","v":29},null,null,{"$f":"SUM(H117:H124)","v":122},{"$f":"SUM(I117:I124)","v":0},{"$f":"SUM(J117:J124)","v":0},6,6,4,4,9,0,0,6,6,4,4,9,0,0,6,6,4,4,9,0,0,6,6,4,4,9,0,{"$f":"SUM(AL117:AL124)","v":0},{"$f":"SUM(AM117:AM124)","v":6}]
[null,null,null,"ИШ КУН-Р",null,null,null,{"$f":"SUM(I125:AM125)","v":122}]
[24,"Дуйшебаева Суйумкан Омушевна",null,null,null,null,null,{"$f":"COUNTIF(I127:AM127,\"7\")","v":0},null,"жш",null,null,null,null,null,null,"жш",null,null,null,null,null,null,"жш",null,null,null,null,null,null,"жш",null,null,null,null,null,null,"жш"]
[null,null,null,"ОС",21,36,null,{"$f":"SUM(I128:AM128)","v":90},null,"жш",6,4,5,3,3,null,"жш",6,4,5,3,3,null,"жш",6,4,5,3,3,null,"жш",6,4,5,3,3,null,"жш",6]
[null,null,null,"ДС",4,null,null,17,null,"жш",1,1,1,1,null,null,"жш",1,1,1,1,null,null,"жш",1,1,1,1,null,null,"жш",1,1,1,1,null,null,"жш",1]
[null,"11 А","Всш","ЧО,ТС ",6,null,null,26,null,"жш",2,1,1,1,1,null,"жш",2,1,1,1,1,null,"жш",2,1,1,1,1,null,"жш",2,1,1,1,1,null,"жш",2]
[null,null,null,"ЗОС",null,null,null,0,null,"жш",null,null,null,null,null,null,"жш",null,null,null,null,null,null,"жш",null,null,null,null,null,null,"жш",null,null,null,null,null,null,"жш"]
[null,null,null,"ЗДС",null,null,null,0,null,"жш",null,null,null,null,null,null,"жш",null,null,null,null,null,null,"жш",null,null,null,null,null,null,"жш",null,null,null,null,null,null,"жш"]
[null,null,null,"ЗЧО,ТС ",null,null,null,0,null,"жш",null,null,null,null,null,null,"жш",null,null,null,null,null,null,"жш",null,null,null,null,null,null,"жш",null,null,null,null,null,null,"жш"]
[null,"орус тили ",null,"ИЙИРИМ",null,null,null,0,null,"жш",null,null,null,null,null,null,"жш",null,null,null,null,null,null,"жш",null,null,null,null,null,null,"жш",null,null,null,null,null,null,"жш"]
[null,null,null,null,null,null,null,0,null,"жш",null,null,null,null,null,null,"жш",null,null,null,null,null,null,"жш",null,null,null,null,null,null,"жш",null,null,null,null,null,null,"жш"]
[null,67.5,0.3,"ЖЫЙ-Ы",{"$f":"SUM(E128:E135)","v":31},null,null,{"$f":"SUM(H128:H135)","v":133},{"$f":"SUM(I128:I135)","v":0},{"$f":"SUM(J128:J135)","v":0},9,6,7,5,4,0,0,9,6,7,5,4,0,0,9,6,7,5,4,0,0,9,6,7,5,4,0,{"$f":"SUM(AL128:AL135)","v":0},{"$f":"SUM(AM128:AM135)","v":9}]
[null,null,null,"ИШ КУН-Р",null,null,null,{"$f":"SUM(I136:AM136)","v":133}]
[25,"Дуйшенова Гулсайна Саткынбаевна",null,null,null,null,null,{"$f":"COUNTIF(I138:AM138,\"7\")","v":0},null,"жш",null,null,null,null,null,null,"жш",null,null,null,null,null,null,"жш",null,null,null,null,null,null,"жш",null,null,null,null,null,null,"жш"]
[null,null,null,"ОС",17,null,null,{"$f":"SUM(I139:AM139)","v":72},null,"жш",4,4,3,3,3,null,"жш",4,4,3,3,3,null,"жш",4,4,3,3,3,null,"жш",4,4,3,3,3,null,"жш",4]
[null,null,null,"ДС",6,null,null,26,null,"жш",2,1,1,1,1,null,"жш",2,1,1,1,1,null,"жш",2,1,1,1,1,null,"жш",2,1,1,1,1,null,"жш",2]
[null,"1 Г","Всш","ЧО,ТС ",6,null,null,26,null,"жш",2,1,1,1,1,null,"жш",2,1,1,1,1,null,"жш",2,1,1,1,1,null,"жш",2,1,1,1,1,null,"жш",2]
[null,null,null,"ЗОС",null,null,null,0,null,"жш",null,null,null,null,null,null,"жш",null,null,null,null,null,null,"жш",null,null,null,null,null,null,"жш",null,null,null,null,null,null,"жш"]
[null,null,null,"ЗДС",null,null,null,0,null,"жш",null,null,null,null,null,null,"жш",null,null,null,null,null,null,"жш",null,null,null,null,null,null,"жш",null,null,null,null,null,null,"жш"]
[null,null,null,"ЗЧО,ТС ",null,null,null,0,null,"жш",null,null,null,null,null,null,"жш",null,null,null,null,null,null,"жш",null,null,null,null,null,null,"жш",null,null,null,null,null,null,"жш"]
[null,"нач.классы",null,"ИЙИРИМ",null,null,null,0,null,"жш",null,null,null,null,null,null,"жш",null,null,null,null,null,null,"жш",null,null,null,null,null,null,"жш",null,null,null,null,null,null,"жш"]
[null,null,null,null,null,null,null,0,null,"жш",null,null,null,null,null,null,"жш",null,null,null,null,null,null,"жш",null,null,null,null,null,null,"жш",null,null,null,null,null,null,"жш"]
[null,81,0.3,"ЖЫЙ-Ы",{"$f":"SUM(E139:E146)","v":29},null,null,{"$f":"SUM(H139:H146)","v":124},{"$f":"SUM(I139:I146)","v":0},{"$f":"SUM(J139:J146)","v":0},8,6,5,5,5,0,0,8,6,5,5,5,0,0,8,6,5,5,5,0,0,8,6,5,5,5,0,{"$f":"SUM(AL139:AL146)","v":0},{"$f":"SUM(AM139:AM146)","v":8}]
[null,null,null,"ИШ КУН-Р",null,null,null,{"$f":"SUM(I147:AM147)","v":124}]